Workbook

Sheet SRP
B2: Version 1.1
B3: Bitte beachten Sie folgende Hinweise: | F3: 1) Bitte Fremdsprache weiter unten im Dropdown-Menü auswählen und die Schulkennzahl und Klasse eintragen. 2) Für die Fertigkeiten Lesen, Hören und Sprachverwendung im Kontext bitte für jede Aufgabe die maximal zu erreichenden Punkte in die orangen Felder eintragen. 3) Tragen Sie für alle Kandidatinnen und Kandidaten Name, Geschlecht, besuchte Schulform und erreichte Punkte pro Aufgabe ein. Beachten Sie dabei bitte, dass für nicht gelöste bzw. nicht bearbeitete Aufgaben der Wert 0 eingetragen werden muss. Achtung: Werden für eine Fertigkeit gar keine Werte eingetragen, wird diese bei der Berechnung nicht berücksichtigt. 4) Tragen Sie bitte die laut Beurteilungserlass (AHS, GZ BMBF-11.012/0250-I/3/2014) ermittelte Note (als Ziffer) für jede Kandidatin und jeden Kandidaten ein. | Y3: 5) Verfassen Sie bitte eine verbale Begründung für jede Note. 6) Sind die Ergebnisse aller Kandidatinnen und Kandidaten eingetragen, klicken Sie bitte auf den Button "Daten exportieren (anonym)". 7) Unten links können Sie unter "Einzelergebnis" bzw. "Klassenergebnis" detaillierte Ergebnisse zu jeder Kandidatin und jedem Kandidaten bzw. von der ganzen Gruppe sehen. Diese können auch ausgedruckt werden.
B5: Standardisierte kompetenzorientierte schriftliche Reifeprüfung Lebende Fremdsprachen – Mai 2016
B7: Kandidatenzahl | C7: =IF(COUNTA(E20:E55)>0,COUNTA(E20:E55),0) -> 22 | E7: Lesen | I7: Hören | M7: Sprachverwendung im Kontext | Q7: Schreiben 1 | U7: Schreiben 2
C8: Wertigkeit | E8: =25/SUM(E17:H17) -> 1.041666667 | I8: =25/SUM(I17:L17) -> 0.8333333333 | M8: =25/SUM(M17:P17) -> 0.5681818182 | Q8: =25/SUM(Q17:X17) -> 0.3125 | Y8: gewichtete Punktsumme
Y9: (max. 25 je Fertigkeit)
B10: Schulkennzahl | C10: 601256 | E10: Lesen | I10: Hören | M10: Sprachverwendung im Kontext | Q10: Schreiben 1 | U10: Schreiben 2 | Y10: Lesen | Z10: Hören | AA10: Sprachverwendung im Kontext | AB10: Schreiben | AE10: Rezeptiv (Lesen und Hören) | AF10: Produktiv (Sprachverwendung im Kontext und Schreiben) | AG10: Leistung Gesamt
B11: Fremdsprache | C11: Englisch 8-jährig | E11: Aufgabe 1 | F11: Aufgabe 2 | G11: Aufgabe 3 | H11: Aufgabe 4 | I11: Aufgabe 1 | J11: Aufgabe 2 | K11: Aufgabe 3 | L11: Aufgabe 4 | M11: Aufgabe 1 | N11: Aufgabe 2 | O11: Aufgabe 3 | P11: Aufgabe 4 | Q11: Erfüllung der Aufgabenstellung | R11: Aufbau und Layout | S11: Spektrum sprachlicher Mittel | T11: Sprachrichtigkeit | U11: Erfüllung der Aufgabenstellung | V11: Aufbau und Layout | W11: Spektrum sprachlicher Mittel | X11: Sprachrichtigkeit
B13: Klasse | C13: 8b
AL14: Note eintragen gem. Beurteilungserlass AHS (GZ BMBF-11.012/0250-I/3/2014) | AU14: Fügen Sie hier die verbale Begründung für die Note ein
B17: max. Anzahl an Punkten je Aufgabe | E17: 6 | F17: 6 | G17: 6 | H17: 6 | I17: 7 | J17: 7 | K17: 7 | L17: 9 | M17: 11 | N17: 11 | O17: 13 | P17: 9 | Q17: 10 | R17: 10 | S17: 10 | T17: 10 | U17: 10 | V17: 10 | W17: 10 | X17: 10
B18: Kandidatenname | C18: Geschlecht | D18: Schulform
A20: 1 | B20: Esterbauer Sophie | C20: w | D20: RG | E20: 6 | F20: 5 | G20: 6 | H20: 6 | I20: 7 | J20: 7 | K20: 7 | L20: 9 | M20: 11 | N20: 11 | O20: 13 | P20: 9 | Q20: 10 | R20: 10 | S20: 10 | T20: 10 | U20: 10 | V20: 10 | W20: 10 | X20: 10 | Y20: =IF(SUMPRODUCT(N(E20:H20<>""))=0,"",SUM(E20:H20)*$E$8) -> 23.95833333 | Z20: =IF(SUMPRODUCT(N(I20:L20<>""))=0,"",SUM(I20:L20)*$I$8) -> 25 | AA20: =IF(SUMPRODUCT(N(M20:P20<>""))=0,"",SUM(M20:P20)*$M$8) -> 25 | AB20: =IF(SUMPRODUCT(N(Q20:X20<>""))=0,"",SUM(Q20:X20)*$Q$8) -> 25 | AE20: =IF(SUMPRODUCT(N(Y20:Z20<>""))=0,"",IF($Z20="",(Y20*2),(Y20+Z20))) -> 48.95833333 | AF20: =IF(SUMPRODUCT(N(AA20:AB20<>""))=0,"",(AA20+AB20)) -> 50 | AG20: =IF(SUMPRODUCT(N(AE20:AF20<>""))=0,"",(AE20+AF20)) -> 98.95833333 | AL20: 1 | AU20: Alle Teilbereiche WEIT über das geforderte Maß erfüllt. Sehr flüssiger, idiomatischer Ausdruck, Weit über B2.
A21: 2 | B21: Fernandez de Retana Lucas | C21: m | D21: RG | E21: 6 | F21: 6 | G21: 6 | H21: 6 | I21: 7 | J21: 7 | K21: 7 | L21: 9 | M21: 11 | N21: 11 | O21: 10 | P21: 7 | Q21: 8 | R21: 9 | S21: 7 | T21: 7 | U21: 4 | V21: 6 | W21: 6 | X21: 6 | Y21: =IF(SUMPRODUCT(N(E21:H21<>""))=0,"",SUM(E21:H21)*$E$8) -> 25 | Z21: =IF(SUMPRODUCT(N(I21:L21<>""))=0,"",SUM(I21:L21)*$I$8) -> 25 | AA21: =IF(SUMPRODUCT(N(M21:P21<>""))=0,"",SUM(M21:P21)*$M$8) -> 22.15909091 | AB21: =IF(SUMPRODUCT(N(Q21:X21<>""))=0,"",SUM(Q21:X21)*$Q$8) -> 16.5625 | AE21: =IF(SUMPRODUCT(N(Y21:Z21<>""))=0,"",IF($Z21="",(Y21*2),(Y21+Z21))) -> 50 | AF21: =IF(SUMPRODUCT(N(AA21:AB21<>""))=0,"",(AA21+AB21)) -> 38.72159091 | AG21: =IF(SUMPRODUCT(N(AE21:AF21<>""))=0,"",(AE21+AF21)) -> 88.72159091 | AL21: 2 | AU21: In den rezeptiven Kompetenzen sehr sicher und weit über das geforderte Maß erreicht. Im produktiven Bereich führt begrenzter Wortschatz zu Fehlern und oft ungenauem Ausdruck. Im Bereich Schreiben große Schwächen im Inhalt und zahlreiche Fehler.
A22: 3 | B22: Frantz Moritz | C22: m | D22: RG | E22: 6 | F22: 6 | G22: 6 | H22: 6 | I22: 7 | J22: 5 | K22: 7 | L22: 9 | M22: 11 | N22: 11 | O22: 13 | P22: 8 | Q22: 10 | R22: 9 | S22: 9 | T22: 8 | U22: 8 | V22: 8 | W22: 8 | X22: 8 | Y22: 25 | Z22: 23.33333333 | AA22: 24.43181818 | AB22: 21.25 | AE22: 48.33333333 | AF22: 45.68181818 | AG22: 94.01515152 | AL22: 1 | AU22: Sowohl die produktiven wie auch die Rezeptiven Fertigkeiten sehr sicher. Kleine Fehler im Ausdruck, die aber nie verständnisstörend sind.
A23: 4 | B23: Greimel Elisabeth | C23: w | D23: RG | E23: 6 | F23: 6 | G23: 6 | H23: 6 | I23: 7 | J23: 6 | K23: 7 | L23: 9 | M23: 10 | N23: 11 | O23: 13 | P23: 6 | Q23: 8 | R23: 9 | S23: 7 | T23: 5 | U23: 9 | V23: 9 | W23: 8 | X23: 7 | Y23: =IF(SUMPRODUCT(N(E23:H23<>""))=0,"",SUM(E23:H23)*$E$8) -> 25 | Z23: =IF(SUMPRODUCT(N(I23:L23<>""))=0,"",SUM(I23:L23)*$I$8) -> 24.16666667 | AA23: =IF(SUMPRODUCT(N(M23:P23<>""))=0,"",SUM(M23:P23)*$M$8) -> 22.72727273 | AB23: =IF(SUMPRODUCT(N(Q23:X23<>""))=0,"",SUM(Q23:X23)*$Q$8) -> 19.375 | AE23: 49.16666667 | AF23: 42.10227273 | AG23: 91.26893939 | AL23: 1 | AU23: Die rezeptiven Fertigkeiten sehr sicher und weit über das geforderte Maß erfüllt. Im Bereich "Sprache im Kontext" sehr sicher mit wenigen kleinen Fehlern. Im Bereich "Schreiben" gute inhaltliche Bearbeitung der Themen aber einige Unsicherheiten in der Wortwahl und Grammatik.
A24: 5 | B24: Gschiel Daniel | C24: m | D24: RG | E24: 6 | F24: 6 | G24: 6 | H24: 6 | I24: 7 | J24: 6 | K24: 7 | L24: 9 | M24: 11 | N24: 11 | O24: 11 | P24: 6 | Q24: 7 | R24: 8 | S24: 7 | T24: 7 | U24: 6 | V24: 6 | W24: 7 | X24: 7 | Y24: 25 | Z24: 24.16666667 | AA24: 22.15909091 | AB24: 17.1875 | AE24: 49.16666667 | AF24: 39.34659091 | AG24: 88.51325758 | AL24: 2 | AU24: Die rezeptiven Fertigkeiten sehr sicher und weit über das geforderte Maß erfüllt. In den produktiven Fertigkeiten einige Unsicherheiten in der Wortwahl , Sprachrichtigkeit und im Bezug auf den Textaufbau.
A25: 6 | B25: Hamminger Laura | C25: w | D25: RG | E25: 6 | F25: 6 | G25: 6 | H25: 6 | I25: 7 | J25: 6 | K25: 7 | L25: 9 | M25: 10 | N25: 11 | O25: 11 | P25: 8 | Q25: 10 | R25: 10 | S25: 10 | T25: 10 | U25: 10 | V25: 10 | W25: 10 | X25: 10 | Y25: 25 | Z25: 24.16666667 | AA25: 22.72727273 | AB25: 25 | AE25: 49.16666667 | AF25: 47.72727273 | AG25: 96.89393939 | AL25: 1 | AU25: Alle Teilbereiche sehr gut, idiomatischer,flüssiger Ausdruck, weit über das geforderte Maß erfüllt.
A26: 7 | B26: Hernady Anna | C26: w | D26: RG | E26: 6 | F26: 6 | G26: 6 | H26: 6 | I26: 7 | J26: 7 | K26: 7 | L26: 9 | M26: 8 | N26: 11 | O26: 12 | P26: 9 | Q26: 9 | R26: 10 | S26: 9 | T26: 8 | U26: 9 | V26: 9 | W26: 9 | X26: 8 | Y26: 25 | Z26: 25 | AA26: 22.72727273 | AB26: 22.1875 | AE26: 50 | AF26: 44.91477273 | AG26: 94.91477273 | AL26: 1 | AU26: Alle Teilbereiche weit über das geforderte Maß erfüllt. Sicherer , idiomatischer Ausdruck mit ein paar kleinen Fehlern.
A27: 8 | B27: Hois Benjamin | C27: m | D27: RG | E27: 6 | F27: 6 | G27: 6 | H27: 6 | I27: 7 | J27: 7 | K27: 7 | L27: 9 | M27: 10 | N27: 11 | O27: 12 | P27: 9 | Q27: 9 | R27: 10 | S27: 10 | T27: 10 | U27: 8 | V27: 10 | W27: 10 | X27: 10 | Y27: 25 | Z27: 25 | AA27: 23.86363636 | AB27: 24.0625 | AE27: 50 | AF27: 47.92613636 | AG27: 97.92613636 | AL27: 1 | AU27: In allen Teilbereichen ausgezeichnet, klare, idiomatische Ausdrucksweise, hohe Sicherheit in der Sprachverwendung.Alle Fertigkeiten weit über das geforderte Maß erreicht.
A28: 9 | B28: Höller Pauline | C28: w | D28: RG | E28: 6 | F28: 6 | G28: 6 | H28: 6 | I28: 7 | J28: 6 | K28: 6 | L28: 8 | M28: 9 | N28: 10 | O28: 11 | P28: 7 | Q28: 8 | R28: 8 | S28: 8 | T28: 7 | U28: 7 | V28: 6 | W28: 7 | X28: 6 | Y28: 25 | Z28: 22.5 | AA28: 21.02272727 | AB28: 17.8125 | AE28: 47.5 | AF28: 38.83522727 | AG28: 86.33522727 | AL28: 2 | AU28: Die rezeptiven Fertigkeiten mit sehr großer Sicherheit erfüllt, in der Produktion inhaltlich fast vollständig aber einige Fehler und Einschränkungen im Wortschatz.
A29: 10 | B29: Isailovic Emilia | C29: w | D29: RG | E29: 6 | F29: 6 | G29: 5 | H29: 6 | I29: 7 | J29: 7 | K29: 6 | L29: 9 | M29: 11 | N29: 11 | O29: 13 | P29: 9 | Q29: 10 | R29: 10 | S29: 10 | T29: 10 | U29: 10 | V29: 10 | W29: 10 | X29: 10 | Y29: 23.95833333 | Z29: 24.16666667 | AA29: 25 | AB29: 25 | AE29: =IF(SUMPRODUCT(N(Y29:Z29<>""))=0,"",IF($Z29="",(Y29*2),(Y29+Z29))) -> 48.125 | AF29: =IF(SUMPRODUCT(N(AA29:AB29<>""))=0,"",(AA29+AB29)) -> 50 | AG29: 98.125 | AL29: 1 | AU29: Alle Bereiche weit über das geforderte Maß erfüllt. Weit über B2 Niveau in allen Teilbereichen.
A30: 11 | B30: Kobierski Carolin | C30: w | D30: RG | E30: 6 | F30: 6 | G30: 6 | H30: 6 | I30: 7 | J30: 7 | K30: 6 | L30: 9 | M30: 11 | N30: 11 | O30: 11 | P30: 9 | Q30: 7 | R30: 8 | S30: 8 | T30: 8 | U30: 10 | V30: 10 | W30: 9 | X30: 8 | Y30: 25 | Z30: 24.16666667 | AA30: 23.86363636 | AB30: 21.25 | AE30: 49.16666667 | AF30: 45.11363636 | AG30: 94.28030303 | AL30: 1 | AU30: Alle Teilbereiche weit über das erforderliche Ausmaß erreicht, sichere, idiomatische Sprachverwendung mit ein paar unwesentlichen Fehlern.
A31: 12 | B31: Majcen Lena | C31: w | D31: RG | E31: 6 | F31: 6 | G31: 6 | H31: 6 | I31: 6 | J31: 7 | K31: 7 | L31: 9 | M31: 10 | N31: 11 | O31: 13 | P31: 9 | Q31: 7 | R31: 5 | S31: 5 | T31: 4 | U31: 6 | V31: 6 | W31: 5 | X31: 4 | Y31: 25 | Z31: 24.16666667 | AA31: 24.43181818 | AB31: 13.125 | AE31: 49.16666667 | AF31: 37.55681818 | AG31: 86.72348485 | AL31: 2 | AU31: In den rezeptiven Fertigkeiten sehr sicher und weit über das erforderliche Maß erfüllt. Auch der Bereich "Sprache im Kontext" mit großer Sicherheit sehr gut erfüllt. Im Bereich "Schreiben" große Schwächen: Wenig Sachkenntnis um gute Argumente zu finden, sehr verwirrend und unorganisiert, falsche Verwendung der link-words und Zeiten führt zu vielen Missverständnissen, eingeschränkter Wortschatz führt zu unidiomatischen, schwer verständlichen Umschreibungen. Viele Fehler.
A32: 13 | B32: Ohersthaller Viktor | C32: m | D32: RG | E32: 6 | F32: 6 | G32: 6 | H32: 5 | I32: 7 | J32: 6 | K32: 7 | L32: 9 | M32: 11 | N32: 10 | O32: 12 | P32: 7 | Q32: 10 | R32: 10 | S32: 10 | T32: 10 | U32: 10 | V32: 10 | W32: 10 | X32: 7 | Y32: 23.95833333 | Z32: 24.16666667 | AA32: 22.72727273 | AB32: 24.0625 | AE32: 48.125 | AF32: 46.78977273 | AG32: 94.91477273 | AL32: 1 | AU32: alle Teilbereiche sehr sicher und weit über das Wesentliche erfüllt. Eindeutüg über B2.
A33: 14 | B33: Rieckh Sophie | C33: w | D33: RG | E33: 6 | F33: 6 | G33: 6 | H33: 6 | I33: 7 | J33: 7 | K33: 6 | L33: 9 | M33: 11 | N33: 11 | O33: 11 | P33: 9 | Q33: 9 | R33: 10 | S33: 10 | T33: 9 | U33: 8 | V33: 10 | W33: 9 | X33: 8 | Y33: 25 | Z33: 24.16666667 | AA33: 23.86363636 | AB33: 22.8125 | AE33: 49.16666667 | AF33: 46.67613636 | AG33: 95.84280303 | AL33: 1 | AU33: Alle Teilbereiche sehr sicher und weit über das Wesentliche erfüllt. Sehr flüssiger Schreibstiel, kleine aber nie sinnstörende Fehler im Schreibteil.
A34: 15 | B34: Sandner Benedikt | C34: m | D34: RG | E34: 6 | F34: 5 | G34: 6 | H34: 5 | I34: 7 | J34: 7 | K34: 5 | L34: 9 | M34: 9 | N34: 9 | O34: 8 | P34: 5 | Q34: 5 | R34: 6 | S34: 6 | T34: 6 | U34: 5 | V34: 5 | W34: 6 | X34: 6 | Y34: 22.91666667 | Z34: 23.33333333 | AA34: 17.61363636 | AB34: 14.0625 | AE34: 46.25 | AF34: 31.67613636 | AG34: 77.92613636 | AL34: 3 | AU34: In den rezeptiven Fertigkeiten sehr sicher. Die Erfordernisse in den prodiktiven Fertigkeiten im Wesentlichen erreicht aber viele Unsicherheiten und häufige Fehler.
A35: 16 | B35: Schweighofer Tessa | C35: w | D35: RG | E35: 6 | F35: 6 | G35: 6 | H35: 6 | I35: 7 | J35: 7 | K35: 7 | L35: 9 | M35: 9 | N35: 11 | O35: 12 | P35: 9 | Q35: 9 | R35: 9 | S35: 7 | T35: 6 | U35: 6 | V35: 5 | W35: 5 | X35: 5 | Y35: 25 | Z35: 25 | AA35: 23.29545455 | AB35: 16.25 | AE35: 50 | AF35: 39.54545455 | AG35: 89.54545455 | AL35: 2 | AU35: Die rezeptiven Fertigkeiten sehr sicher und weit über das geforderte Maß erfüllt. Im Bereich "Sprache im Kontext" sehr sicher mit wenigen kleinen Fehlern. Im Bereich "Schreiben" teilweise gute inhaltliche Bearbeitung der Themen aber große Unsicherheiten in der Wortwahl und Grammatik.
A36: 17 | B36: Schwentner Rosa | C36: w | D36: RG | E36: 6 | F36: 6 | G36: 6 | H36: 5 | I36: 7 | J36: 6 | K36: 7 | L36: 8 | M36: 8 | N36: 11 | O36: 11 | P36: 7 | Q36: 5 | R36: 5 | S36: 6 | T36: 6 | U36: 5 | V36: 6 | W36: 6 | X36: 6 | Y36: 23.95833333 | Z36: 23.33333333 | AA36: 21.02272727 | AB36: 14.0625 | AE36: 47.29166667 | AF36: 35.08522727 | AG36: 82.37689394 | AL36: 2 | AU36: In den rezeptiven Fertigkeiten sehr sicher. In den produktiven Fertigkeiten das Wesentliche erreicht, allerdings viele Fehler und Einschränkungen im Ausdruck.
A37: 18 | B37: Spiess Konstantin | C37: m | D37: RG | E37: 6 | F37: 6 | G37: 6 | H37: 6 | I37: 7 | J37: 6 | K37: 7 | L37: 9 | M37: 11 | N37: 11 | O37: 13 | P37: 9 | Q37: 9 | R37: 9 | S37: 8 | T37: 8 | U37: 8 | V37: 8 | W37: 8 | X37: 8 | Y37: 25 | Z37: 24.16666667 | AA37: 25 | AB37: 20.625 | AE37: 49.16666667 | AF37: 45.625 | AG37: 94.79166667 | AL37: 1 | AU37: Alle Teilbereiche weit über das erforderliche Ausmaß erreicht, sichere, großteils idiomatische Sprachverwendung mit ein paar unwesentlichen Fehlern.
A38: 19 | B38: Tafner Hanna | C38: w | D38: RG | E38: 6 | F38: 6 | G38: 6 | H38: 6 | I38: 7 | J38: 7 | K38: 6 | L38: 9 | M38: 5 | N38: 7 | O38: 9 | P38: 3 | Q38: 8 | R38: 7 | S38: 7 | T38: 7 | U38: 6 | V38: 6 | W38: 6 | X38: 6 | Y38: 25 | Z38: 24.16666667 | AA38: 13.63636364 | AB38: 16.5625 | AE38: 49.16666667 | AF38: 30.19886364 | AG38: 79.3655303 | AL38: 3 | AU38: Die Aufgaben der rezeptiven Fertigkeiten vollständig richtig gelöst. In den produktiven Fertigkeiten Schwächen im klaren Ausdruck inhaltlicher Konzepte. Sehr ungenaue Argumentationsweise, eingeschränkter Wortschatz und zahlreiche Fehler.
A39: 20 | B39: Wardell Charis | C39: w | D39: RG | E39: 4 | F39: 6 | G39: 6 | H39: 6 | I39: 7 | J39: 7 | K39: 7 | L39: 9 | M39: 11 | N39: 11 | O39: 13 | P39: 9 | Q39: 10 | R39: 10 | S39: 9 | T39: 8 | U39: 8 | V39: 10 | W39: 10 | X39: 10 | Y39: 22.91666667 | Z39: 25 | AA39: 25 | AB39: 23.4375 | AE39: 47.91666667 | AF39: 48.4375 | AG39: 96.35416667 | AL39: 1 | AU39: Sehr sicher in allen Teilbereichen, sowohl rezeptive als auch produktive Fertigkeiten weit über das geforderte Maß erreicht. Idiomatischer Ausdruck, sehr hohe Sprachrichtigkeit und sehr gut strukturierte, klare Argumentationslinien.
A40: 21 | B40: Wasserfaller Caterina | C40: w | D40: RG | E40: 6 | F40: 6 | G40: 6 | H40: 6 | I40: 7 | J40: 7 | K40: 6 | L40: 9 | M40: 11 | N40: 11 | O40: 12 | P40: 9 | Q40: 8 | R40: 10 | S40: 8 | T40: 8 | U40: 6 | V40: 8 | W40: 8 | X40: 8 | Y40: 25 | Z40: 24.16666667 | AA40: 24.43181818 | AB40: 20 | AE40: 49.16666667 | AF40: 44.43181818 | AG40: 93.59848485 | AL40: 1 | AU40: Die rezeptiven Fertigkeiten vollständig erfüllt, in den produktiven Fertigkeiten sehr sichere, meist idiomatische Sprachverwendung. Inhaltliche Schwächen im Aufsatz aufgrund mangelnder Kenntnis der Sachlage.
A41: 22 | B41: Wunderling Benjamin | C41: m | D41: RG | E41: 6 | F41: 6 | G41: 6 | H41: 6 | I41: 7 | J41: 7 | K41: 7 | L41: 9 | M41: 11 | N41: 11 | O41: 13 | P41: 7 | Q41: 10 | R41: 10 | S41: 10 | T41: 10 | U41: 10 | V41: 10 | W41: 10 | X41: 10 | Y41: 25 | Z41: 25 | AA41: 23.86363636 | AB41: 25 | AE41: 50 | AF41: 48.86363636 | AG41: 98.86363636 | AL41: 1 | AU41: In allen Teilbereichen weit über das Wesentliche erfüllt. Sehr eigenständige, idiomatische und klar strukturierte Textproduktion
A42: 23
A43: 24
A44: 25
A45: 26
A46: 27
A47: 28
A48: 29
A49: 30
A50: 31
A51: 32
A52: 33
A53: 34
A54: 35
A55: 36

Sheet Einzelergebnis
O2: lf Nr.
B3: Einzelauswertungen Gewünschte Kandidatin/ gewünschten Kandidat auswählen | F3: Reifeprüfungsergebnis von: | G3: =B10 -> Schwentner Rosa | O3: =IF(SRP!B20<>"",ROW(O3)-2,"") -> 1
O4: =IF(SRP!B21<>"",ROW(O4)-2,"") -> 2
E5: Kompetenzbereiche | F5: Fertigkeit | G5: Punkte | H5: gewichtete Punkte | I5: gewichtete Punkte pro Kompetenzbereich | J5: Lösungs-quote in % | L5: LqK in % (Klassen-mittelwert) | O5: =IF(SRP!B22<>"",ROW(O5)-2,"") -> 3
O6: =IF(SRP!B23<>"",ROW(O6)-2,"") -> 4
E7: rezeptiver Kompetenzbereich | F7: Lesen | G7: =SUM(INDIRECT("SRP!"&"E"&SUM($C$9+19)):INDIRECT("SRP!"&"H"&SUM($C$9+19))) -> 23 | H7: =INDIRECT("SRP!"&"Y"&SUM($C$9+19)) -> 23.95833333 | I7: =INDIRECT("SRP!"&"AE"&SUM($C$9+19)) -> 47.29166667 | J7: =IF(SUMPRODUCT(N(H7<>""))=0,"",ROUND(H7/25*100,2) ) -> 95.83 | L7: =IF(SUMPRODUCT(N(SRP!Y20:Y55<>""))=0,"",ROUND(AVERAGE(SRP!Y20:Y55)*4,2)) -> 98.48 | O7: =IF(SRP!B24<>"",ROW(O7)-2,"") -> 5
F8: Hören | G8: =IF(COUNTA(INDIRECT("SRP!"&"I"&SUM($C$9+19)):INDIRECT("SRP!"&"L"&SUM($C$9+19)))=0,"",SUM(INDIRECT("SRP!"&"I"&SUM($C$9+19)):INDIRECT("SRP!"&"L"&SUM($C$9+19)))) -> 28 | H8: =INDIRECT("SRP!"&"Z"&SUM($C$9+19)) -> 23.33333333 | J8: =IF(SUMPRODUCT(N(H8<>""))=0,"",ROUND(H8/25*100,2) ) -> 93.33 | L8: =IF(SUMPRODUCT(N(SRP!Z20:Z55<>""))=0,"",ROUND(AVERAGE(SRP!Z20:Z55)*4,2)) -> 96.97 | O8: =IF(SRP!B25<>"",ROW(O8)-2,"") -> 6
B9: Kandidat/in | C9: 17 | E9: produktiver Kompetenzbereich | F9: Sprache im Kontext | G9: =SUM(INDIRECT("SRP!"&"M"&SUM($C$9+19)):INDIRECT("SRP!"&"P"&SUM($C$9+19))) -> 37 | H9: =INDIRECT("SRP!"&"AA"&SUM($C$9+19)) -> 21.02272727 | I9: =INDIRECT("SRP!"&"AF"&SUM($C$9+19)) -> 35.08522727 | J9: =IF(SUMPRODUCT(N(H9<>""))=0,"",ROUND(H9/25*100,2) ) -> 84.09 | L9: =IF(SUMPRODUCT(N(SRP!AA20:AA55<>""))=0,"",ROUND(AVERAGE(SRP!AA20:AA55)*4,2)) -> 91.01 | O9: =IF(SRP!B26<>"",ROW(O9)-2,"") -> 7
B10: =IF(INDIRECT("SRP!"&"B"&Einzelergebnis!C9+19)<>0,INDIRECT("SRP!"&"B"&Einzelergebnis!C9+19),"") -> Schwentner Rosa | F10: Schreiben | G10: =SUM(INDIRECT("SRP!"&"Q"&SUM($C$9+19)):INDIRECT("SRP!"&"X"&SUM($C$9+19))) -> 45 | H10: =INDIRECT("SRP!"&"AB"&SUM($C$9+19)) -> 14.0625 | J10: 56.25 | L10: =IF(SUMPRODUCT(N(SRP!AB20:AB55<>""))=0,"",ROUND(AVERAGE(SRP!AB20:AB55)*4,2)) -> 80.85 | O10: =IF(SRP!B27<>"",ROW(O10)-2,"") -> 8
O11: =IF(SRP!B28<>"",ROW(O11)-2,"") -> 9
G12: gewichtete Punkte gesamt | I12: =SUM(I7:I10) -> 82.37689394 | O12: =IF(SRP!B29<>"",ROW(O12)-2,"") -> 10
O13: =IF(SRP!B30<>"",ROW(O13)-2,"") -> 11
G14: Note | I14: =LOOKUP(IF(SUMPRODUCT(N(INDIRECT("SRP!"&"AL"&SUM($C$9+19))<>""))=0,"",INDIRECT("SRP!"&"AL"&SUM($C$9+19))),{1;2;3;4;5;""},{"Sehr Gut";"Gut";"Befriedigend";"Genügend";"Nicht Genügend";""}) -> Gut | O14: =IF(SRP!B31<>"",ROW(O14)-2,"") -> 12
O15: =IF(SRP!B32<>"",ROW(O15)-2,"") -> 13
O16: =IF(SRP!B33<>"",ROW(O16)-2,"") -> 14
G17: Verbale Begründung (für Reifeprüfung verpflichtend) | O17: =IF(SRP!B34<>"",ROW(O17)-2,"") -> 15
G18: =IF(COUNTA(INDIRECT("SRP!"&"$AU"&SUM($C$9+19)))=0, "", INDIRECT("SRP!"&"$AU"&SUM($C$9+19))) -> In den rezeptiven Fertigkeiten sehr sicher. In den produktiven Fertigkeiten das Wesentliche erreicht, allerdings viele Fehler und Einschränkungen im Ausdruck. | O18: =IF(SRP!B35<>"",ROW(O18)-2,"") -> 16
O19: =IF(SRP!B36<>"",ROW(O19)-2,"") -> 17
O20: =IF(SRP!B37<>"",ROW(O20)-2,"") -> 18
O21: =IF(SRP!B38<>"",ROW(O21)-2,"") -> 19
O22: =IF(SRP!B39<>"",ROW(O22)-2,"") -> 20
O23: =IF(SRP!B40<>"",ROW(O23)-2,"") -> 21
O24: =IF(SRP!B41<>"",ROW(O24)-2,"") -> 22
O25: =IF(SRP!B42<>"",ROW(O25)-2,"") -> 
O26: =IF(SRP!B43<>"",ROW(O26)-2,"") -> 
O27: =IF(SRP!B44<>"",ROW(O27)-2,"") -> 
O28: =IF(SRP!B45<>"",ROW(O28)-2,"") -> 
O29: =IF(SRP!B46<>"",ROW(O29)-2,"") -> 
O30: =IF(SRP!B47<>"",ROW(O30)-2,"") -> 
O31: =IF(SRP!B48<>"",ROW(O31)-2,"") -> 
O32: =IF(SRP!B49<>"",ROW(O32)-2,"") -> 
O33: =IF(SRP!B50<>"",ROW(O33)-2,"") -> 
O34: =IF(SRP!B51<>"",ROW(O34)-2,"") -> 
O35: =IF(SRP!B52<>"",ROW(O35)-2,"") -> 
O36: =IF(SRP!B53<>"",ROW(O36)-2,"") -> 
O37: =IF(SRP!B54<>"",ROW(O37)-2,"") -> 
O38: =IF(SRP!B55<>"",ROW(O38)-2,"") -> 

Sheet Klassenergebnis
B3: Klassenergebnis
A7: Klasse für Tabelle
A9: 1
A10: 2
A11: 3
A12: 4
A13: 5
H26: Note | I26: Häufigkeit
I27: Anzahl | J27: Prozent
H28: Sehr Gut | I28: =FREQUENCY(SRP!AL20:AL55,A9:A13) -> 14 | J28: =IF($I$33<>0,ROUND(I28/SUM($I$28:$I$32)*100,2),0) -> 63.64
H29: Gut | I29: 6 | J29: =IF($I$33<>0,ROUND(I29/SUM($I$28:$I$32)*100,2),0) -> 27.27
H30: Befriedigend | I30: 2 | J30: 9.09
H31: Genügend | I31: 0 | J31: 0
H32: Nicht Genügend | I32: 0 | J32: 0
H33: Kandidatenzahl | I33: =SUM(I28:I32) -> 22 | J33: =SUM(J28:J32) -> 100

Sheet EXPORT (hidden)
A1: Schulform | B1: =SRP!B10 -> Schulkennzahl | C1: Fach | D1: Klasse | E1: Version | F1: Kandidatennummer | G1: Geschlecht | H1: Schulform_Kand | I1: Aufgabe_1 | J1: Aufgabe_2 | K1: Aufgabe_3 | L1: Aufgabe_4 | M1: Aufgabe_5 | N1: Aufgabe_6 | O1: Aufgabe_7 | P1: Aufgabe_8 | Q1: Aufgabe_9 | R1: Aufgabe_10 | S1: Aufgabe_11 | T1: Aufgabe_12 | U1: Aufgabe_13 | V1: Aufgabe_14 | W1: Aufgabe_15 | X1: Aufgabe_16 | Y1: Aufgabe_17 | Z1: Aufgabe_18 | AA1: Aufgabe_19 | AB1: Aufgabe_20 | AC1: Lesen_gew | AD1: Hoeren_gew | AE1: SiK_gew | AF1: Schreiben_gew | AG1: Note
A2: AHS | B2: =SRP!C10 -> 601256 | C2: =SRP!C11 -> Englisch 8-jährig | D2: =SRP!C13 -> 8b | E2: =SRP!B2 -> Version 1.1 | F2: =SRP!C7 -> 22 | I2: =SRP!E17 -> 6 | J2: =SRP!F17 -> 6 | K2: =SRP!G17 -> 6 | L2: =SRP!H17 -> 6 | M2: =SRP!I17 -> 7 | N2: =SRP!J17 -> 7 | O2: =SRP!K17 -> 7 | P2: =SRP!L17 -> 9 | Q2: =SRP!M17 -> 11 | R2: =SRP!N17 -> 11 | S2: =SRP!O17 -> 13 | T2: =SRP!P17 -> 9 | U2: =SRP!Q17 -> 10 | V2: =SRP!R17 -> 10 | W2: =SRP!S17 -> 10 | X2: =SRP!T17 -> 10 | Y2: =SRP!U17 -> 10 | Z2: =SRP!V17 -> 10 | AA2: =SRP!W17 -> 10 | AB2: =SRP!X17 -> 10 | AC2: 25 | AD2: 25 | AE2: 25 | AF2: 25
F3: =IF(SRP!B20<>"",ROW(F3)-2,"") -> 1 | G3: =IF(SUMPRODUCT(N(SRP!$C20<>""))=0,"",SRP!C20) -> w | H3: =IF(SUMPRODUCT(N(SRP!$D20<>""))=0,"",SRP!D20) -> RG | I3: =IF(SUMPRODUCT(N(SRP!$E20:'SRP'!$H20<>""))=0,"",SRP!E20) -> 6 | J3: =IF(SUMPRODUCT(N(SRP!$E20:'SRP'!$H20<>""))=0,"",SRP!F20) -> 5 | K3: =IF(SUMPRODUCT(N(SRP!$E20:'SRP'!$H20<>""))=0,"",SRP!G20) -> 6 | L3: =IF(SUMPRODUCT(N(SRP!$E20:'SRP'!$H20<>""))=0,"",SRP!H20) -> 6 | M3: =IF(SUMPRODUCT(N(SRP!$I20:'SRP'!$L20<>""))=0,"",SRP!I20) -> 7 | N3: =IF(SUMPRODUCT(N(SRP!$I20:'SRP'!$L20<>""))=0,"",SRP!J20) -> 7 | O3: =IF(SUMPRODUCT(N(SRP!$I20:'SRP'!$L20<>""))=0,"",SRP!K20) -> 7 | P3: =IF(SUMPRODUCT(N(SRP!$I20:'SRP'!$L20<>""))=0,"",SRP!L20) -> 9 | Q3: =IF(SUMPRODUCT(N(SRP!$M20:'SRP'!$P20<>""))=0,"",SRP!M20) -> 11 | R3: =IF(SUMPRODUCT(N(SRP!$M20:'SRP'!$P20<>""))=0,"",SRP!N20) -> 11 | S3: =IF(SUMPRODUCT(N(SRP!$M20:'SRP'!$P20<>""))=0,"",SRP!O20) -> 13 | T3: =IF(SUMPRODUCT(N(SRP!$M20:'SRP'!$P20<>""))=0,"",SRP!P20) -> 9 | U3: =IF(SUMPRODUCT(N(SRP!$Q20:'SRP'!$X20<>""))=0,"",SRP!Q20) -> 10 | V3: =IF(SUMPRODUCT(N(SRP!$Q20:'SRP'!$X20<>""))=0,"",SRP!R20) -> 10 | W3: =IF(SUMPRODUCT(N(SRP!$Q20:'SRP'!$X20<>""))=0,"",SRP!S20) -> 10 | X3: =IF(SUMPRODUCT(N(SRP!$Q20:'SRP'!$X20<>""))=0,"",SRP!T20) -> 10 | Y3: =IF(SUMPRODUCT(N(SRP!$Q20:'SRP'!$X20<>""))=0,"",SRP!U20) -> 10 | Z3: =IF(SUMPRODUCT(N(SRP!$Q20:'SRP'!$X20<>""))=0,"",SRP!V20) -> 10 | AA3: =IF(SUMPRODUCT(N(SRP!$Q20:'SRP'!$X20<>""))=0,"",SRP!W20) -> 10 | AB3: =IF(SUMPRODUCT(N(SRP!$Q20:'SRP'!$X20<>""))=0,"",SRP!X20) -> 10 | AC3: =IF(SUMPRODUCT(N(SRP!Y20<>""))=0,"",ROUND(SRP!Y20, 2)) -> 23.96 | AD3: =IF(SUMPRODUCT(N(SRP!Z20<>""))=0,"",ROUND(SRP!Z20, 2)) -> 25 | AE3: =IF(SUMPRODUCT(N(SRP!AA20<>""))=0,"",ROUND(SRP!AA20, 2)) -> 25 | AF3: =IF(SUMPRODUCT(N(SRP!AB20<>""))=0,"",ROUND(SRP!AB20, 2)) -> 25 | AG3: =IF(SUMPRODUCT(N(SRP!AL20<>""))=0,"",SRP!AL20) -> 1
F4: =IF(SRP!B21<>"",ROW(F4)-2,"") -> 2 | G4: =IF(SUMPRODUCT(N(SRP!$C21<>""))=0,"",SRP!C21) -> m | H4: =IF(SUMPRODUCT(N(SRP!$D21<>""))=0,"",SRP!D21) -> RG | I4: =IF(SUMPRODUCT(N(SRP!$E21:'SRP'!$H21<>""))=0,"",SRP!E21) -> 6 | J4: =IF(SUMPRODUCT(N(SRP!$E21:'SRP'!$H21<>""))=0,"",SRP!F21) -> 6 | K4: =IF(SUMPRODUCT(N(SRP!$E21:'SRP'!$H21<>""))=0,"",SRP!G21) -> 6 | L4: =IF(SUMPRODUCT(N(SRP!$E21:'SRP'!$H21<>""))=0,"",SRP!H21) -> 6 | M4: =IF(SUMPRODUCT(N(SRP!$I21:'SRP'!$L21<>""))=0,"",SRP!I21) -> 7 | N4: =IF(SUMPRODUCT(N(SRP!$I21:'SRP'!$L21<>""))=0,"",SRP!J21) -> 7 | O4: =IF(SUMPRODUCT(N(SRP!$I21:'SRP'!$L21<>""))=0,"",SRP!K21) -> 7 | P4: =IF(SUMPRODUCT(N(SRP!$I21:'SRP'!$L21<>""))=0,"",SRP!L21) -> 9 | Q4: =IF(SUMPRODUCT(N(SRP!$M21:'SRP'!$P21<>""))=0,"",SRP!M21) -> 11 | R4: =IF(SUMPRODUCT(N(SRP!$M21:'SRP'!$P21<>""))=0,"",SRP!N21) -> 11 | S4: =IF(SUMPRODUCT(N(SRP!$M21:'SRP'!$P21<>""))=0,"",SRP!O21) -> 10 | T4: =IF(SUMPRODUCT(N(SRP!$M21:'SRP'!$P21<>""))=0,"",SRP!P21) -> 7 | U4: =IF(SUMPRODUCT(N(SRP!$Q21:'SRP'!$X21<>""))=0,"",SRP!Q21) -> 8 | V4: =IF(SUMPRODUCT(N(SRP!$Q21:'SRP'!$X21<>""))=0,"",SRP!R21) -> 9 | W4: =IF(SUMPRODUCT(N(SRP!$Q21:'SRP'!$X21<>""))=0,"",SRP!S21) -> 7 | X4: =IF(SUMPRODUCT(N(SRP!$Q21:'SRP'!$X21<>""))=0,"",SRP!T21) -> 7 | Y4: =IF(SUMPRODUCT(N(SRP!$Q21:'SRP'!$X21<>""))=0,"",SRP!U21) -> 4 | Z4: =IF(SUMPRODUCT(N(SRP!$Q21:'SRP'!$X21<>""))=0,"",SRP!V21) -> 6 | AA4: =IF(SUMPRODUCT(N(SRP!$Q21:'SRP'!$X21<>""))=0,"",SRP!W21) -> 6 | AB4: =IF(SUMPRODUCT(N(SRP!$Q21:'SRP'!$X21<>""))=0,"",SRP!X21) -> 6 | AC4: =IF(SUMPRODUCT(N(SRP!Y21<>""))=0,"",ROUND(SRP!Y21, 2)) -> 25 | AD4: =IF(SUMPRODUCT(N(SRP!Z21<>""))=0,"",ROUND(SRP!Z21, 2)) -> 25 | AE4: =IF(SUMPRODUCT(N(SRP!AA21<>""))=0,"",ROUND(SRP!AA21, 2)) -> 22.16 | AF4: =IF(SUMPRODUCT(N(SRP!AB21<>""))=0,"",ROUND(SRP!AB21, 2)) -> 16.56 | AG4: =IF(SUMPRODUCT(N(SRP!AL21<>""))=0,"",SRP!AL21) -> 2
F5: =IF(SRP!B22<>"",ROW(F5)-2,"") -> 3 | G5: =IF(SUMPRODUCT(N(SRP!$C22<>""))=0,"",SRP!C22) -> m | H5: =IF(SUMPRODUCT(N(SRP!$D22<>""))=0,"",SRP!D22) -> RG | I5: =IF(SUMPRODUCT(N(SRP!$E22:'SRP'!$H22<>""))=0,"",SRP!E22) -> 6 | J5: =IF(SUMPRODUCT(N(SRP!$E22:'SRP'!$H22<>""))=0,"",SRP!F22) -> 6 | K5: =IF(SUMPRODUCT(N(SRP!$E22:'SRP'!$H22<>""))=0,"",SRP!G22) -> 6 | L5: =IF(SUMPRODUCT(N(SRP!$E22:'SRP'!$H22<>""))=0,"",SRP!H22) -> 6 | M5: =IF(SUMPRODUCT(N(SRP!$I22:'SRP'!$L22<>""))=0,"",SRP!I22) -> 7 | N5: =IF(SUMPRODUCT(N(SRP!$I22:'SRP'!$L22<>""))=0,"",SRP!J22) -> 5 | O5: =IF(SUMPRODUCT(N(SRP!$I22:'SRP'!$L22<>""))=0,"",SRP!K22) -> 7 | P5: =IF(SUMPRODUCT(N(SRP!$I22:'SRP'!$L22<>""))=0,"",SRP!L22) -> 9 | Q5: =IF(SUMPRODUCT(N(SRP!$M22:'SRP'!$P22<>""))=0,"",SRP!M22) -> 11 | R5: =IF(SUMPRODUCT(N(SRP!$M22:'SRP'!$P22<>""))=0,"",SRP!N22) -> 11 | S5: =IF(SUMPRODUCT(N(SRP!$M22:'SRP'!$P22<>""))=0,"",SRP!O22) -> 13 | T5: =IF(SUMPRODUCT(N(SRP!$M22:'SRP'!$P22<>""))=0,"",SRP!P22) -> 8 | U5: =IF(SUMPRODUCT(N(SRP!$Q22:'SRP'!$X22<>""))=0,"",SRP!Q22) -> 10 | V5: =IF(SUMPRODUCT(N(SRP!$Q22:'SRP'!$X22<>""))=0,"",SRP!R22) -> 9 | W5: =IF(SUMPRODUCT(N(SRP!$Q22:'SRP'!$X22<>""))=0,"",SRP!S22) -> 9 | X5: =IF(SUMPRODUCT(N(SRP!$Q22:'SRP'!$X22<>""))=0,"",SRP!T22) -> 8 | Y5: =IF(SUMPRODUCT(N(SRP!$Q22:'SRP'!$X22<>""))=0,"",SRP!U22) -> 8 | Z5: =IF(SUMPRODUCT(N(SRP!$Q22:'SRP'!$X22<>""))=0,"",SRP!V22) -> 8 | AA5: =IF(SUMPRODUCT(N(SRP!$Q22:'SRP'!$X22<>""))=0,"",SRP!W22) -> 8 | AB5: =IF(SUMPRODUCT(N(SRP!$Q22:'SRP'!$X22<>""))=0,"",SRP!X22) -> 8 | AC5: =IF(SUMPRODUCT(N(SRP!Y22<>""))=0,"",ROUND(SRP!Y22, 2)) -> 25 | AD5: =IF(SUMPRODUCT(N(SRP!Z22<>""))=0,"",ROUND(SRP!Z22, 2)) -> 23.33 | AE5: =IF(SUMPRODUCT(N(SRP!AA22<>""))=0,"",ROUND(SRP!AA22, 2)) -> 24.43 | AF5: =IF(SUMPRODUCT(N(SRP!AB22<>""))=0,"",ROUND(SRP!AB22, 2)) -> 21.25 | AG5: =IF(SUMPRODUCT(N(SRP!AL22<>""))=0,"",SRP!AL22) -> 1
F6: =IF(SRP!B23<>"",ROW(F6)-2,"") -> 4 | G6: =IF(SUMPRODUCT(N(SRP!$C23<>""))=0,"",SRP!C23) -> w | H6: =IF(SUMPRODUCT(N(SRP!$D23<>""))=0,"",SRP!D23) -> RG | I6: =IF(SUMPRODUCT(N(SRP!$E23:'SRP'!$H23<>""))=0,"",SRP!E23) -> 6 | J6: =IF(SUMPRODUCT(N(SRP!$E23:'SRP'!$H23<>""))=0,"",SRP!F23) -> 6 | K6: =IF(SUMPRODUCT(N(SRP!$E23:'SRP'!$H23<>""))=0,"",SRP!G23) -> 6 | L6: =IF(SUMPRODUCT(N(SRP!$E23:'SRP'!$H23<>""))=0,"",SRP!H23) -> 6 | M6: =IF(SUMPRODUCT(N(SRP!$I23:'SRP'!$L23<>""))=0,"",SRP!I23) -> 7 | N6: =IF(SUMPRODUCT(N(SRP!$I23:'SRP'!$L23<>""))=0,"",SRP!J23) -> 6 | O6: =IF(SUMPRODUCT(N(SRP!$I23:'SRP'!$L23<>""))=0,"",SRP!K23) -> 7 | P6: =IF(SUMPRODUCT(N(SRP!$I23:'SRP'!$L23<>""))=0,"",SRP!L23) -> 9 | Q6: =IF(SUMPRODUCT(N(SRP!$M23:'SRP'!$P23<>""))=0,"",SRP!M23) -> 10 | R6: =IF(SUMPRODUCT(N(SRP!$M23:'SRP'!$P23<>""))=0,"",SRP!N23) -> 11 | S6: =IF(SUMPRODUCT(N(SRP!$M23:'SRP'!$P23<>""))=0,"",SRP!O23) -> 13 | T6: =IF(SUMPRODUCT(N(SRP!$M23:'SRP'!$P23<>""))=0,"",SRP!P23) -> 6 | U6: =IF(SUMPRODUCT(N(SRP!$Q23:'SRP'!$X23<>""))=0,"",SRP!Q23) -> 8 | V6: =IF(SUMPRODUCT(N(SRP!$Q23:'SRP'!$X23<>""))=0,"",SRP!R23) -> 9 | W6: =IF(SUMPRODUCT(N(SRP!$Q23:'SRP'!$X23<>""))=0,"",SRP!S23) -> 7 | X6: =IF(SUMPRODUCT(N(SRP!$Q23:'SRP'!$X23<>""))=0,"",SRP!T23) -> 5 | Y6: =IF(SUMPRODUCT(N(SRP!$Q23:'SRP'!$X23<>""))=0,"",SRP!U23) -> 9 | Z6: =IF(SUMPRODUCT(N(SRP!$Q23:'SRP'!$X23<>""))=0,"",SRP!V23) -> 9 | AA6: =IF(SUMPRODUCT(N(SRP!$Q23:'SRP'!$X23<>""))=0,"",SRP!W23) -> 8 | AB6: =IF(SUMPRODUCT(N(SRP!$Q23:'SRP'!$X23<>""))=0,"",SRP!X23) -> 7 | AC6: =IF(SUMPRODUCT(N(SRP!Y23<>""))=0,"",ROUND(SRP!Y23, 2)) -> 25 | AD6: =IF(SUMPRODUCT(N(SRP!Z23<>""))=0,"",ROUND(SRP!Z23, 2)) -> 24.17 | AE6: =IF(SUMPRODUCT(N(SRP!AA23<>""))=0,"",ROUND(SRP!AA23, 2)) -> 22.73 | AF6: =IF(SUMPRODUCT(N(SRP!AB23<>""))=0,"",ROUND(SRP!AB23, 2)) -> 19.38 | AG6: =IF(SUMPRODUCT(N(SRP!AL23<>""))=0,"",SRP!AL23) -> 1
F7: =IF(SRP!B24<>"",ROW(F7)-2,"") -> 5 | G7: =IF(SUMPRODUCT(N(SRP!$C24<>""))=0,"",SRP!C24) -> m | H7: =IF(SUMPRODUCT(N(SRP!$D24<>""))=0,"",SRP!D24) -> RG | I7: =IF(SUMPRODUCT(N(SRP!$E24:'SRP'!$H24<>""))=0,"",SRP!E24) -> 6 | J7: =IF(SUMPRODUCT(N(SRP!$E24:'SRP'!$H24<>""))=0,"",SRP!F24) -> 6 | K7: =IF(SUMPRODUCT(N(SRP!$E24:'SRP'!$H24<>""))=0,"",SRP!G24) -> 6 | L7: =IF(SUMPRODUCT(N(SRP!$E24:'SRP'!$H24<>""))=0,"",SRP!H24) -> 6 | M7: =IF(SUMPRODUCT(N(SRP!$I24:'SRP'!$L24<>""))=0,"",SRP!I24) -> 7 | N7: =IF(SUMPRODUCT(N(SRP!$I24:'SRP'!$L24<>""))=0,"",SRP!J24) -> 6 | O7: =IF(SUMPRODUCT(N(SRP!$I24:'SRP'!$L24<>""))=0,"",SRP!K24) -> 7 | P7: =IF(SUMPRODUCT(N(SRP!$I24:'SRP'!$L24<>""))=0,"",SRP!L24) -> 9 | Q7: =IF(SUMPRODUCT(N(SRP!$M24:'SRP'!$P24<>""))=0,"",SRP!M24) -> 11 | R7: =IF(SUMPRODUCT(N(SRP!$M24:'SRP'!$P24<>""))=0,"",SRP!N24) -> 11 | S7: =IF(SUMPRODUCT(N(SRP!$M24:'SRP'!$P24<>""))=0,"",SRP!O24) -> 11 | T7: =IF(SUMPRODUCT(N(SRP!$M24:'SRP'!$P24<>""))=0,"",SRP!P24) -> 6 | U7: =IF(SUMPRODUCT(N(SRP!$Q24:'SRP'!$X24<>""))=0,"",SRP!Q24) -> 7 | V7: =IF(SUMPRODUCT(N(SRP!$Q24:'SRP'!$X24<>""))=0,"",SRP!R24) -> 8 | W7: =IF(SUMPRODUCT(N(SRP!$Q24:'SRP'!$X24<>""))=0,"",SRP!S24) -> 7 | X7: =IF(SUMPRODUCT(N(SRP!$Q24:'SRP'!$X24<>""))=0,"",SRP!T24) -> 7 | Y7: =IF(SUMPRODUCT(N(SRP!$Q24:'SRP'!$X24<>""))=0,"",SRP!U24) -> 6 | Z7: =IF(SUMPRODUCT(N(SRP!$Q24:'SRP'!$X24<>""))=0,"",SRP!V24) -> 6 | AA7: =IF(SUMPRODUCT(N(SRP!$Q24:'SRP'!$X24<>""))=0,"",SRP!W24) -> 7 | AB7: =IF(SUMPRODUCT(N(SRP!$Q24:'SRP'!$X24<>""))=0,"",SRP!X24) -> 7 | AC7: =IF(SUMPRODUCT(N(SRP!Y24<>""))=0,"",ROUND(SRP!Y24, 2)) -> 25 | AD7: =IF(SUMPRODUCT(N(SRP!Z24<>""))=0,"",ROUND(SRP!Z24, 2)) -> 24.17 | AE7: =IF(SUMPRODUCT(N(SRP!AA24<>""))=0,"",ROUND(SRP!AA24, 2)) -> 22.16 | AF7: =IF(SUMPRODUCT(N(SRP!AB24<>""))=0,"",ROUND(SRP!AB24, 2)) -> 17.19 | AG7: =IF(SUMPRODUCT(N(SRP!AL24<>""))=0,"",SRP!AL24) -> 2
F8: =IF(SRP!B25<>"",ROW(F8)-2,"") -> 6 | G8: =IF(SUMPRODUCT(N(SRP!$C25<>""))=0,"",SRP!C25) -> w | H8: =IF(SUMPRODUCT(N(SRP!$D25<>""))=0,"",SRP!D25) -> RG | I8: =IF(SUMPRODUCT(N(SRP!$E25:'SRP'!$H25<>""))=0,"",SRP!E25) -> 6 | J8: =IF(SUMPRODUCT(N(SRP!$E25:'SRP'!$H25<>""))=0,"",SRP!F25) -> 6 | K8: =IF(SUMPRODUCT(N(SRP!$E25:'SRP'!$H25<>""))=0,"",SRP!G25) -> 6 | L8: =IF(SUMPRODUCT(N(SRP!$E25:'SRP'!$H25<>""))=0,"",SRP!H25) -> 6 | M8: =IF(SUMPRODUCT(N(SRP!$I25:'SRP'!$L25<>""))=0,"",SRP!I25) -> 7 | N8: =IF(SUMPRODUCT(N(SRP!$I25:'SRP'!$L25<>""))=0,"",SRP!J25) -> 6 | O8: =IF(SUMPRODUCT(N(SRP!$I25:'SRP'!$L25<>""))=0,"",SRP!K25) -> 7 | P8: =IF(SUMPRODUCT(N(SRP!$I25:'SRP'!$L25<>""))=0,"",SRP!L25) -> 9 | Q8: =IF(SUMPRODUCT(N(SRP!$M25:'SRP'!$P25<>""))=0,"",SRP!M25) -> 10 | R8: =IF(SUMPRODUCT(N(SRP!$M25:'SRP'!$P25<>""))=0,"",SRP!N25) -> 11 | S8: =IF(SUMPRODUCT(N(SRP!$M25:'SRP'!$P25<>""))=0,"",SRP!O25) -> 11 | T8: =IF(SUMPRODUCT(N(SRP!$M25:'SRP'!$P25<>""))=0,"",SRP!P25) -> 8 | U8: =IF(SUMPRODUCT(N(SRP!$Q25:'SRP'!$X25<>""))=0,"",SRP!Q25) -> 10 | V8: =IF(SUMPRODUCT(N(SRP!$Q25:'SRP'!$X25<>""))=0,"",SRP!R25) -> 10 | W8: =IF(SUMPRODUCT(N(SRP!$Q25:'SRP'!$X25<>""))=0,"",SRP!S25) -> 10 | X8: =IF(SUMPRODUCT(N(SRP!$Q25:'SRP'!$X25<>""))=0,"",SRP!T25) -> 10 | Y8: =IF(SUMPRODUCT(N(SRP!$Q25:'SRP'!$X25<>""))=0,"",SRP!U25) -> 10 | Z8: =IF(SUMPRODUCT(N(SRP!$Q25:'SRP'!$X25<>""))=0,"",SRP!V25) -> 10 | AA8: =IF(SUMPRODUCT(N(SRP!$Q25:'SRP'!$X25<>""))=0,"",SRP!W25) -> 10 | AB8: =IF(SUMPRODUCT(N(SRP!$Q25:'SRP'!$X25<>""))=0,"",SRP!X25) -> 10 | AC8: =IF(SUMPRODUCT(N(SRP!Y25<>""))=0,"",ROUND(SRP!Y25, 2)) -> 25 | AD8: =IF(SUMPRODUCT(N(SRP!Z25<>""))=0,"",ROUND(SRP!Z25, 2)) -> 24.17 | AE8: =IF(SUMPRODUCT(N(SRP!AA25<>""))=0,"",ROUND(SRP!AA25, 2)) -> 22.73 | AF8: =IF(SUMPRODUCT(N(SRP!AB25<>""))=0,"",ROUND(SRP!AB25, 2)) -> 25 | AG8: =IF(SUMPRODUCT(N(SRP!AL25<>""))=0,"",SRP!AL25) -> 1
F9: =IF(SRP!B26<>"",ROW(F9)-2,"") -> 7 | G9: =IF(SUMPRODUCT(N(SRP!$C26<>""))=0,"",SRP!C26) -> w | H9: =IF(SUMPRODUCT(N(SRP!$D26<>""))=0,"",SRP!D26) -> RG | I9: =IF(SUMPRODUCT(N(SRP!$E26:'SRP'!$H26<>""))=0,"",SRP!E26) -> 6 | J9: =IF(SUMPRODUCT(N(SRP!$E26:'SRP'!$H26<>""))=0,"",SRP!F26) -> 6 | K9: =IF(SUMPRODUCT(N(SRP!$E26:'SRP'!$H26<>""))=0,"",SRP!G26) -> 6 | L9: =IF(SUMPRODUCT(N(SRP!$E26:'SRP'!$H26<>""))=0,"",SRP!H26) -> 6 | M9: =IF(SUMPRODUCT(N(SRP!$I26:'SRP'!$L26<>""))=0,"",SRP!I26) -> 7 | N9: =IF(SUMPRODUCT(N(SRP!$I26:'SRP'!$L26<>""))=0,"",SRP!J26) -> 7 | O9: =IF(SUMPRODUCT(N(SRP!$I26:'SRP'!$L26<>""))=0,"",SRP!K26) -> 7 | P9: =IF(SUMPRODUCT(N(SRP!$I26:'SRP'!$L26<>""))=0,"",SRP!L26) -> 9 | Q9: =IF(SUMPRODUCT(N(SRP!$M26:'SRP'!$P26<>""))=0,"",SRP!M26) -> 8 | R9: =IF(SUMPRODUCT(N(SRP!$M26:'SRP'!$P26<>""))=0,"",SRP!N26) -> 11 | S9: =IF(SUMPRODUCT(N(SRP!$M26:'SRP'!$P26<>""))=0,"",SRP!O26) -> 12 | T9: =IF(SUMPRODUCT(N(SRP!$M26:'SRP'!$P26<>""))=0,"",SRP!P26) -> 9 | U9: =IF(SUMPRODUCT(N(SRP!$Q26:'SRP'!$X26<>""))=0,"",SRP!Q26) -> 9 | V9: =IF(SUMPRODUCT(N(SRP!$Q26:'SRP'!$X26<>""))=0,"",SRP!R26) -> 10 | W9: =IF(SUMPRODUCT(N(SRP!$Q26:'SRP'!$X26<>""))=0,"",SRP!S26) -> 9 | X9: =IF(SUMPRODUCT(N(SRP!$Q26:'SRP'!$X26<>""))=0,"",SRP!T26) -> 8 | Y9: =IF(SUMPRODUCT(N(SRP!$Q26:'SRP'!$X26<>""))=0,"",SRP!U26) -> 9 | Z9: =IF(SUMPRODUCT(N(SRP!$Q26:'SRP'!$X26<>""))=0,"",SRP!V26) -> 9 | AA9: =IF(SUMPRODUCT(N(SRP!$Q26:'SRP'!$X26<>""))=0,"",SRP!W26) -> 9 | AB9: =IF(SUMPRODUCT(N(SRP!$Q26:'SRP'!$X26<>""))=0,"",SRP!X26) -> 8 | AC9: =IF(SUMPRODUCT(N(SRP!Y26<>""))=0,"",ROUND(SRP!Y26, 2)) -> 25 | AD9: =IF(SUMPRODUCT(N(SRP!Z26<>""))=0,"",ROUND(SRP!Z26, 2)) -> 25 | AE9: =IF(SUMPRODUCT(N(SRP!AA26<>""))=0,"",ROUND(SRP!AA26, 2)) -> 22.73 | AF9: =IF(SUMPRODUCT(N(SRP!AB26<>""))=0,"",ROUND(SRP!AB26, 2)) -> 22.19 | AG9: =IF(SUMPRODUCT(N(SRP!AL26<>""))=0,"",SRP!AL26) -> 1
F10: =IF(SRP!B27<>"",ROW(F10)-2,"") -> 8 | G10: =IF(SUMPRODUCT(N(SRP!$C27<>""))=0,"",SRP!C27) -> m | H10: =IF(SUMPRODUCT(N(SRP!$D27<>""))=0,"",SRP!D27) -> RG | I10: =IF(SUMPRODUCT(N(SRP!$E27:'SRP'!$H27<>""))=0,"",SRP!E27) -> 6 | J10: =IF(SUMPRODUCT(N(SRP!$E27:'SRP'!$H27<>""))=0,"",SRP!F27) -> 6 | K10: =IF(SUMPRODUCT(N(SRP!$E27:'SRP'!$H27<>""))=0,"",SRP!G27) -> 6 | L10: =IF(SUMPRODUCT(N(SRP!$E27:'SRP'!$H27<>""))=0,"",SRP!H27) -> 6 | M10: =IF(SUMPRODUCT(N(SRP!$I27:'SRP'!$L27<>""))=0,"",SRP!I27) -> 7 | N10: =IF(SUMPRODUCT(N(SRP!$I27:'SRP'!$L27<>""))=0,"",SRP!J27) -> 7 | O10: =IF(SUMPRODUCT(N(SRP!$I27:'SRP'!$L27<>""))=0,"",SRP!K27) -> 7 | P10: =IF(SUMPRODUCT(N(SRP!$I27:'SRP'!$L27<>""))=0,"",SRP!L27) -> 9 | Q10: =IF(SUMPRODUCT(N(SRP!$M27:'SRP'!$P27<>""))=0,"",SRP!M27) -> 10 | R10: =IF(SUMPRODUCT(N(SRP!$M27:'SRP'!$P27<>""))=0,"",SRP!N27) -> 11 | S10: =IF(SUMPRODUCT(N(SRP!$M27:'SRP'!$P27<>""))=0,"",SRP!O27) -> 12 | T10: =IF(SUMPRODUCT(N(SRP!$M27:'SRP'!$P27<>""))=0,"",SRP!P27) -> 9 | U10: =IF(SUMPRODUCT(N(SRP!$Q27:'SRP'!$X27<>""))=0,"",SRP!Q27) -> 9 | V10: =IF(SUMPRODUCT(N(SRP!$Q27:'SRP'!$X27<>""))=0,"",SRP!R27) -> 10 | W10: =IF(SUMPRODUCT(N(SRP!$Q27:'SRP'!$X27<>""))=0,"",SRP!S27) -> 10 | X10: =IF(SUMPRODUCT(N(SRP!$Q27:'SRP'!$X27<>""))=0,"",SRP!T27) -> 10 | Y10: =IF(SUMPRODUCT(N(SRP!$Q27:'SRP'!$X27<>""))=0,"",SRP!U27) -> 8 | Z10: =IF(SUMPRODUCT(N(SRP!$Q27:'SRP'!$X27<>""))=0,"",SRP!V27) -> 10 | AA10: =IF(SUMPRODUCT(N(SRP!$Q27:'SRP'!$X27<>""))=0,"",SRP!W27) -> 10 | AB10: =IF(SUMPRODUCT(N(SRP!$Q27:'SRP'!$X27<>""))=0,"",SRP!X27) -> 10 | AC10: =IF(SUMPRODUCT(N(SRP!Y27<>""))=0,"",ROUND(SRP!Y27, 2)) -> 25 | AD10: =IF(SUMPRODUCT(N(SRP!Z27<>""))=0,"",ROUND(SRP!Z27, 2)) -> 25 | AE10: =IF(SUMPRODUCT(N(SRP!AA27<>""))=0,"",ROUND(SRP!AA27, 2)) -> 23.86 | AF10: =IF(SUMPRODUCT(N(SRP!AB27<>""))=0,"",ROUND(SRP!AB27, 2)) -> 24.06 | AG10: =IF(SUMPRODUCT(N(SRP!AL27<>""))=0,"",SRP!AL27) -> 1
F11: =IF(SRP!B28<>"",ROW(F11)-2,"") -> 9 | G11: =IF(SUMPRODUCT(N(SRP!$C28<>""))=0,"",SRP!C28) -> w | H11: =IF(SUMPRODUCT(N(SRP!$D28<>""))=0,"",SRP!D28) -> RG | I11: =IF(SUMPRODUCT(N(SRP!$E28:'SRP'!$H28<>""))=0,"",SRP!E28) -> 6 | J11: =IF(SUMPRODUCT(N(SRP!$E28:'SRP'!$H28<>""))=0,"",SRP!F28) -> 6 | K11: =IF(SUMPRODUCT(N(SRP!$E28:'SRP'!$H28<>""))=0,"",SRP!G28) -> 6 | L11: =IF(SUMPRODUCT(N(SRP!$E28:'SRP'!$H28<>""))=0,"",SRP!H28) -> 6 | M11: =IF(SUMPRODUCT(N(SRP!$I28:'SRP'!$L28<>""))=0,"",SRP!I28) -> 7 | N11: =IF(SUMPRODUCT(N(SRP!$I28:'SRP'!$L28<>""))=0,"",SRP!J28) -> 6 | O11: =IF(SUMPRODUCT(N(SRP!$I28:'SRP'!$L28<>""))=0,"",SRP!K28) -> 6 | P11: =IF(SUMPRODUCT(N(SRP!$I28:'SRP'!$L28<>""))=0,"",SRP!L28) -> 8 | Q11: =IF(SUMPRODUCT(N(SRP!$M28:'SRP'!$P28<>""))=0,"",SRP!M28) -> 9 | R11: =IF(SUMPRODUCT(N(SRP!$M28:'SRP'!$P28<>""))=0,"",SRP!N28) -> 10 | S11: =IF(SUMPRODUCT(N(SRP!$M28:'SRP'!$P28<>""))=0,"",SRP!O28) -> 11 | T11: =IF(SUMPRODUCT(N(SRP!$M28:'SRP'!$P28<>""))=0,"",SRP!P28) -> 7 | U11: =IF(SUMPRODUCT(N(SRP!$Q28:'SRP'!$X28<>""))=0,"",SRP!Q28) -> 8 | V11: =IF(SUMPRODUCT(N(SRP!$Q28:'SRP'!$X28<>""))=0,"",SRP!R28) -> 8 | W11: =IF(SUMPRODUCT(N(SRP!$Q28:'SRP'!$X28<>""))=0,"",SRP!S28) -> 8 | X11: =IF(SUMPRODUCT(N(SRP!$Q28:'SRP'!$X28<>""))=0,"",SRP!T28) -> 7 | Y11: =IF(SUMPRODUCT(N(SRP!$Q28:'SRP'!$X28<>""))=0,"",SRP!U28) -> 7 | Z11: =IF(SUMPRODUCT(N(SRP!$Q28:'SRP'!$X28<>""))=0,"",SRP!V28) -> 6 | AA11: =IF(SUMPRODUCT(N(SRP!$Q28:'SRP'!$X28<>""))=0,"",SRP!W28) -> 7 | AB11: =IF(SUMPRODUCT(N(SRP!$Q28:'SRP'!$X28<>""))=0,"",SRP!X28) -> 6 | AC11: =IF(SUMPRODUCT(N(SRP!Y28<>""))=0,"",ROUND(SRP!Y28, 2)) -> 25 | AD11: =IF(SUMPRODUCT(N(SRP!Z28<>""))=0,"",ROUND(SRP!Z28, 2)) -> 22.5 | AE11: =IF(SUMPRODUCT(N(SRP!AA28<>""))=0,"",ROUND(SRP!AA28, 2)) -> 21.02 | AF11: =IF(SUMPRODUCT(N(SRP!AB28<>""))=0,"",ROUND(SRP!AB28, 2)) -> 17.81 | AG11: =IF(SUMPRODUCT(N(SRP!AL28<>""))=0,"",SRP!AL28) -> 2
F12: =IF(SRP!B29<>"",ROW(F12)-2,"") -> 10 | G12: =IF(SUMPRODUCT(N(SRP!$C29<>""))=0,"",SRP!C29) -> w | H12: =IF(SUMPRODUCT(N(SRP!$D29<>""))=0,"",SRP!D29) -> RG | I12: =IF(SUMPRODUCT(N(SRP!$E29:'SRP'!$H29<>""))=0,"",SRP!E29) -> 6 | J12: =IF(SUMPRODUCT(N(SRP!$E29:'SRP'!$H29<>""))=0,"",SRP!F29) -> 6 | K12: =IF(SUMPRODUCT(N(SRP!$E29:'SRP'!$H29<>""))=0,"",SRP!G29) -> 5 | L12: =IF(SUMPRODUCT(N(SRP!$E29:'SRP'!$H29<>""))=0,"",SRP!H29) -> 6 | M12: =IF(SUMPRODUCT(N(SRP!$I29:'SRP'!$L29<>""))=0,"",SRP!I29) -> 7 | N12: =IF(SUMPRODUCT(N(SRP!$I29:'SRP'!$L29<>""))=0,"",SRP!J29) -> 7 | O12: =IF(SUMPRODUCT(N(SRP!$I29:'SRP'!$L29<>""))=0,"",SRP!K29) -> 6 | P12: =IF(SUMPRODUCT(N(SRP!$I29:'SRP'!$L29<>""))=0,"",SRP!L29) -> 9 | Q12: =IF(SUMPRODUCT(N(SRP!$M29:'SRP'!$P29<>""))=0,"",SRP!M29) -> 11 | R12: =IF(SUMPRODUCT(N(SRP!$M29:'SRP'!$P29<>""))=0,"",SRP!N29) -> 11 | S12: =IF(SUMPRODUCT(N(SRP!$M29:'SRP'!$P29<>""))=0,"",SRP!O29) -> 13 | T12: =IF(SUMPRODUCT(N(SRP!$M29:'SRP'!$P29<>""))=0,"",SRP!P29) -> 9 | U12: =IF(SUMPRODUCT(N(SRP!$Q29:'SRP'!$X29<>""))=0,"",SRP!Q29) -> 10 | V12: =IF(SUMPRODUCT(N(SRP!$Q29:'SRP'!$X29<>""))=0,"",SRP!R29) -> 10 | W12: =IF(SUMPRODUCT(N(SRP!$Q29:'SRP'!$X29<>""))=0,"",SRP!S29) -> 10 | X12: =IF(SUMPRODUCT(N(SRP!$Q29:'SRP'!$X29<>""))=0,"",SRP!T29) -> 10 | Y12: =IF(SUMPRODUCT(N(SRP!$Q29:'SRP'!$X29<>""))=0,"",SRP!U29) -> 10 | Z12: =IF(SUMPRODUCT(N(SRP!$Q29:'SRP'!$X29<>""))=0,"",SRP!V29) -> 10 | AA12: =IF(SUMPRODUCT(N(SRP!$Q29:'SRP'!$X29<>""))=0,"",SRP!W29) -> 10 | AB12: =IF(SUMPRODUCT(N(SRP!$Q29:'SRP'!$X29<>""))=0,"",SRP!X29) -> 10 | AC12: =IF(SUMPRODUCT(N(SRP!Y29<>""))=0,"",ROUND(SRP!Y29, 2)) -> 23.96 | AD12: =IF(SUMPRODUCT(N(SRP!Z29<>""))=0,"",ROUND(SRP!Z29, 2)) -> 24.17 | AE12: =IF(SUMPRODUCT(N(SRP!AA29<>""))=0,"",ROUND(SRP!AA29, 2)) -> 25 | AF12: =IF(SUMPRODUCT(N(SRP!AB29<>""))=0,"",ROUND(SRP!AB29, 2)) -> 25 | AG12: =IF(SUMPRODUCT(N(SRP!AL29<>""))=0,"",SRP!AL29) -> 1
F13: =IF(SRP!B30<>"",ROW(F13)-2,"") -> 11 | G13: =IF(SUMPRODUCT(N(SRP!$C30<>""))=0,"",SRP!C30) -> w | H13: =IF(SUMPRODUCT(N(SRP!$D30<>""))=0,"",SRP!D30) -> RG | I13: =IF(SUMPRODUCT(N(SRP!$E30:'SRP'!$H30<>""))=0,"",SRP!E30) -> 6 | J13: =IF(SUMPRODUCT(N(SRP!$E30:'SRP'!$H30<>""))=0,"",SRP!F30) -> 6 | K13: =IF(SUMPRODUCT(N(SRP!$E30:'SRP'!$H30<>""))=0,"",SRP!G30) -> 6 | L13: =IF(SUMPRODUCT(N(SRP!$E30:'SRP'!$H30<>""))=0,"",SRP!H30) -> 6 | M13: =IF(SUMPRODUCT(N(SRP!$I30:'SRP'!$L30<>""))=0,"",SRP!I30) -> 7 | N13: =IF(SUMPRODUCT(N(SRP!$I30:'SRP'!$L30<>""))=0,"",SRP!J30) -> 7 | O13: =IF(SUMPRODUCT(N(SRP!$I30:'SRP'!$L30<>""))=0,"",SRP!K30) -> 6 | P13: =IF(SUMPRODUCT(N(SRP!$I30:'SRP'!$L30<>""))=0,"",SRP!L30) -> 9 | Q13: =IF(SUMPRODUCT(N(SRP!$M30:'SRP'!$P30<>""))=0,"",SRP!M30) -> 11 | R13: =IF(SUMPRODUCT(N(SRP!$M30:'SRP'!$P30<>""))=0,"",SRP!N30) -> 11 | S13: =IF(SUMPRODUCT(N(SRP!$M30:'SRP'!$P30<>""))=0,"",SRP!O30) -> 11 | T13: =IF(SUMPRODUCT(N(SRP!$M30:'SRP'!$P30<>""))=0,"",SRP!P30) -> 9 | U13: =IF(SUMPRODUCT(N(SRP!$Q30:'SRP'!$X30<>""))=0,"",SRP!Q30) -> 7 | V13: =IF(SUMPRODUCT(N(SRP!$Q30:'SRP'!$X30<>""))=0,"",SRP!R30) -> 8 | W13: =IF(SUMPRODUCT(N(SRP!$Q30:'SRP'!$X30<>""))=0,"",SRP!S30) -> 8 | X13: =IF(SUMPRODUCT(N(SRP!$Q30:'SRP'!$X30<>""))=0,"",SRP!T30) -> 8 | Y13: =IF(SUMPRODUCT(N(SRP!$Q30:'SRP'!$X30<>""))=0,"",SRP!U30) -> 10 | Z13: =IF(SUMPRODUCT(N(SRP!$Q30:'SRP'!$X30<>""))=0,"",SRP!V30) -> 10 | AA13: =IF(SUMPRODUCT(N(SRP!$Q30:'SRP'!$X30<>""))=0,"",SRP!W30) -> 9 | AB13: =IF(SUMPRODUCT(N(SRP!$Q30:'SRP'!$X30<>""))=0,"",SRP!X30) -> 8 | AC13: =IF(SUMPRODUCT(N(SRP!Y30<>""))=0,"",ROUND(SRP!Y30, 2)) -> 25 | AD13: =IF(SUMPRODUCT(N(SRP!Z30<>""))=0,"",ROUND(SRP!Z30, 2)) -> 24.17 | AE13: =IF(SUMPRODUCT(N(SRP!AA30<>""))=0,"",ROUND(SRP!AA30, 2)) -> 23.86 | AF13: =IF(SUMPRODUCT(N(SRP!AB30<>""))=0,"",ROUND(SRP!AB30, 2)) -> 21.25 | AG13: =IF(SUMPRODUCT(N(SRP!AL30<>""))=0,"",SRP!AL30) -> 1
F14: =IF(SRP!B31<>"",ROW(F14)-2,"") -> 12 | G14: =IF(SUMPRODUCT(N(SRP!$C31<>""))=0,"",SRP!C31) -> w | H14: =IF(SUMPRODUCT(N(SRP!$D31<>""))=0,"",SRP!D31) -> RG | I14: =IF(SUMPRODUCT(N(SRP!$E31:'SRP'!$H31<>""))=0,"",SRP!E31) -> 6 | J14: =IF(SUMPRODUCT(N(SRP!$E31:'SRP'!$H31<>""))=0,"",SRP!F31) -> 6 | K14: =IF(SUMPRODUCT(N(SRP!$E31:'SRP'!$H31<>""))=0,"",SRP!G31) -> 6 | L14: =IF(SUMPRODUCT(N(SRP!$E31:'SRP'!$H31<>""))=0,"",SRP!H31) -> 6 | M14: =IF(SUMPRODUCT(N(SRP!$I31:'SRP'!$L31<>""))=0,"",SRP!I31) -> 6 | N14: =IF(SUMPRODUCT(N(SRP!$I31:'SRP'!$L31<>""))=0,"",SRP!J31) -> 7 | O14: =IF(SUMPRODUCT(N(SRP!$I31:'SRP'!$L31<>""))=0,"",SRP!K31) -> 7 | P14: =IF(SUMPRODUCT(N(SRP!$I31:'SRP'!$L31<>""))=0,"",SRP!L31) -> 9 | Q14: =IF(SUMPRODUCT(N(SRP!$M31:'SRP'!$P31<>""))=0,"",SRP!M31) -> 10 | R14: =IF(SUMPRODUCT(N(SRP!$M31:'SRP'!$P31<>""))=0,"",SRP!N31) -> 11 | S14: =IF(SUMPRODUCT(N(SRP!$M31:'SRP'!$P31<>""))=0,"",SRP!O31) -> 13 | T14: =IF(SUMPRODUCT(N(SRP!$M31:'SRP'!$P31<>""))=0,"",SRP!P31) -> 9 | U14: =IF(SUMPRODUCT(N(SRP!$Q31:'SRP'!$X31<>""))=0,"",SRP!Q31) -> 7 | V14: =IF(SUMPRODUCT(N(SRP!$Q31:'SRP'!$X31<>""))=0,"",SRP!R31) -> 5 | W14: =IF(SUMPRODUCT(N(SRP!$Q31:'SRP'!$X31<>""))=0,"",SRP!S31) -> 5 | X14: =IF(SUMPRODUCT(N(SRP!$Q31:'SRP'!$X31<>""))=0,"",SRP!T31) -> 4 | Y14: =IF(SUMPRODUCT(N(SRP!$Q31:'SRP'!$X31<>""))=0,"",SRP!U31) -> 6 | Z14: =IF(SUMPRODUCT(N(SRP!$Q31:'SRP'!$X31<>""))=0,"",SRP!V31) -> 6 | AA14: =IF(SUMPRODUCT(N(SRP!$Q31:'SRP'!$X31<>""))=0,"",SRP!W31) -> 5 | AB14: =IF(SUMPRODUCT(N(SRP!$Q31:'SRP'!$X31<>""))=0,"",SRP!X31) -> 4 | AC14: =IF(SUMPRODUCT(N(SRP!Y31<>""))=0,"",ROUND(SRP!Y31, 2)) -> 25 | AD14: =IF(SUMPRODUCT(N(SRP!Z31<>""))=0,"",ROUND(SRP!Z31, 2)) -> 24.17 | AE14: =IF(SUMPRODUCT(N(SRP!AA31<>""))=0,"",ROUND(SRP!AA31, 2)) -> 24.43 | AF14: =IF(SUMPRODUCT(N(SRP!AB31<>""))=0,"",ROUND(SRP!AB31, 2)) -> 13.13 | AG14: =IF(SUMPRODUCT(N(SRP!AL31<>""))=0,"",SRP!AL31) -> 2
F15: =IF(SRP!B32<>"",ROW(F15)-2,"") -> 13 | G15: =IF(SUMPRODUCT(N(SRP!$C32<>""))=0,"",SRP!C32) -> m | H15: =IF(SUMPRODUCT(N(SRP!$D32<>""))=0,"",SRP!D32) -> RG | I15: =IF(SUMPRODUCT(N(SRP!$E32:'SRP'!$H32<>""))=0,"",SRP!E32) -> 6 | J15: =IF(SUMPRODUCT(N(SRP!$E32:'SRP'!$H32<>""))=0,"",SRP!F32) -> 6 | K15: =IF(SUMPRODUCT(N(SRP!$E32:'SRP'!$H32<>""))=0,"",SRP!G32) -> 6 | L15: =IF(SUMPRODUCT(N(SRP!$E32:'SRP'!$H32<>""))=0,"",SRP!H32) -> 5 | M15: =IF(SUMPRODUCT(N(SRP!$I32:'SRP'!$L32<>""))=0,"",SRP!I32) -> 7 | N15: =IF(SUMPRODUCT(N(SRP!$I32:'SRP'!$L32<>""))=0,"",SRP!J32) -> 6 | O15: =IF(SUMPRODUCT(N(SRP!$I32:'SRP'!$L32<>""))=0,"",SRP!K32) -> 7 | P15: =IF(SUMPRODUCT(N(SRP!$I32:'SRP'!$L32<>""))=0,"",SRP!L32) -> 9 | Q15: =IF(SUMPRODUCT(N(SRP!$M32:'SRP'!$P32<>""))=0,"",SRP!M32) -> 11 | R15: =IF(SUMPRODUCT(N(SRP!$M32:'SRP'!$P32<>""))=0,"",SRP!N32) -> 10 | S15: =IF(SUMPRODUCT(N(SRP!$M32:'SRP'!$P32<>""))=0,"",SRP!O32) -> 12 | T15: =IF(SUMPRODUCT(N(SRP!$M32:'SRP'!$P32<>""))=0,"",SRP!P32) -> 7 | U15: =IF(SUMPRODUCT(N(SRP!$Q32:'SRP'!$X32<>""))=0,"",SRP!Q32) -> 10 | V15: =IF(SUMPRODUCT(N(SRP!$Q32:'SRP'!$X32<>""))=0,"",SRP!R32) -> 10 | W15: =IF(SUMPRODUCT(N(SRP!$Q32:'SRP'!$X32<>""))=0,"",SRP!S32) -> 10 | X15: =IF(SUMPRODUCT(N(SRP!$Q32:'SRP'!$X32<>""))=0,"",SRP!T32) -> 10 | Y15: =IF(SUMPRODUCT(N(SRP!$Q32:'SRP'!$X32<>""))=0,"",SRP!U32) -> 10 | Z15: =IF(SUMPRODUCT(N(SRP!$Q32:'SRP'!$X32<>""))=0,"",SRP!V32) -> 10 | AA15: =IF(SUMPRODUCT(N(SRP!$Q32:'SRP'!$X32<>""))=0,"",SRP!W32) -> 10 | AB15: =IF(SUMPRODUCT(N(SRP!$Q32:'SRP'!$X32<>""))=0,"",SRP!X32) -> 7 | AC15: =IF(SUMPRODUCT(N(SRP!Y32<>""))=0,"",ROUND(SRP!Y32, 2)) -> 23.96 | AD15: =IF(SUMPRODUCT(N(SRP!Z32<>""))=0,"",ROUND(SRP!Z32, 2)) -> 24.17 | AE15: =IF(SUMPRODUCT(N(SRP!AA32<>""))=0,"",ROUND(SRP!AA32, 2)) -> 22.73 | AF15: =IF(SUMPRODUCT(N(SRP!AB32<>""))=0,"",ROUND(SRP!AB32, 2)) -> 24.06 | AG15: =IF(SUMPRODUCT(N(SRP!AL32<>""))=0,"",SRP!AL32) -> 1
F16: =IF(SRP!B33<>"",ROW(F16)-2,"") -> 14 | G16: =IF(SUMPRODUCT(N(SRP!$C33<>""))=0,"",SRP!C33) -> w | H16: =IF(SUMPRODUCT(N(SRP!$D33<>""))=0,"",SRP!D33) -> RG | I16: =IF(SUMPRODUCT(N(SRP!$E33:'SRP'!$H33<>""))=0,"",SRP!E33) -> 6 | J16: =IF(SUMPRODUCT(N(SRP!$E33:'SRP'!$H33<>""))=0,"",SRP!F33) -> 6 | K16: =IF(SUMPRODUCT(N(SRP!$E33:'SRP'!$H33<>""))=0,"",SRP!G33) -> 6 | L16: =IF(SUMPRODUCT(N(SRP!$E33:'SRP'!$H33<>""))=0,"",SRP!H33) -> 6 | M16: =IF(SUMPRODUCT(N(SRP!$I33:'SRP'!$L33<>""))=0,"",SRP!I33) -> 7 | N16: =IF(SUMPRODUCT(N(SRP!$I33:'SRP'!$L33<>""))=0,"",SRP!J33) -> 7 | O16: =IF(SUMPRODUCT(N(SRP!$I33:'SRP'!$L33<>""))=0,"",SRP!K33) -> 6 | P16: =IF(SUMPRODUCT(N(SRP!$I33:'SRP'!$L33<>""))=0,"",SRP!L33) -> 9 | Q16: =IF(SUMPRODUCT(N(SRP!$M33:'SRP'!$P33<>""))=0,"",SRP!M33) -> 11 | R16: =IF(SUMPRODUCT(N(SRP!$M33:'SRP'!$P33<>""))=0,"",SRP!N33) -> 11 | S16: =IF(SUMPRODUCT(N(SRP!$M33:'SRP'!$P33<>""))=0,"",SRP!O33) -> 11 | T16: =IF(SUMPRODUCT(N(SRP!$M33:'SRP'!$P33<>""))=0,"",SRP!P33) -> 9 | U16: =IF(SUMPRODUCT(N(SRP!$Q33:'SRP'!$X33<>""))=0,"",SRP!Q33) -> 9 | V16: =IF(SUMPRODUCT(N(SRP!$Q33:'SRP'!$X33<>""))=0,"",SRP!R33) -> 10 | W16: =IF(SUMPRODUCT(N(SRP!$Q33:'SRP'!$X33<>""))=0,"",SRP!S33) -> 10 | X16: =IF(SUMPRODUCT(N(SRP!$Q33:'SRP'!$X33<>""))=0,"",SRP!T33) -> 9 | Y16: =IF(SUMPRODUCT(N(SRP!$Q33:'SRP'!$X33<>""))=0,"",SRP!U33) -> 8 | Z16: =IF(SUMPRODUCT(N(SRP!$Q33:'SRP'!$X33<>""))=0,"",SRP!V33) -> 10 | AA16: =IF(SUMPRODUCT(N(SRP!$Q33:'SRP'!$X33<>""))=0,"",SRP!W33) -> 9 | AB16: =IF(SUMPRODUCT(N(SRP!$Q33:'SRP'!$X33<>""))=0,"",SRP!X33) -> 8 | AC16: =IF(SUMPRODUCT(N(SRP!Y33<>""))=0,"",ROUND(SRP!Y33, 2)) -> 25 | AD16: =IF(SUMPRODUCT(N(SRP!Z33<>""))=0,"",ROUND(SRP!Z33, 2)) -> 24.17 | AE16: =IF(SUMPRODUCT(N(SRP!AA33<>""))=0,"",ROUND(SRP!AA33, 2)) -> 23.86 | AF16: =IF(SUMPRODUCT(N(SRP!AB33<>""))=0,"",ROUND(SRP!AB33, 2)) -> 22.81 | AG16: =IF(SUMPRODUCT(N(SRP!AL33<>""))=0,"",SRP!AL33) -> 1
F17: =IF(SRP!B34<>"",ROW(F17)-2,"") -> 15 | G17: =IF(SUMPRODUCT(N(SRP!$C34<>""))=0,"",SRP!C34) -> m | H17: =IF(SUMPRODUCT(N(SRP!$D34<>""))=0,"",SRP!D34) -> RG | I17: =IF(SUMPRODUCT(N(SRP!$E34:'SRP'!$H34<>""))=0,"",SRP!E34) -> 6 | J17: =IF(SUMPRODUCT(N(SRP!$E34:'SRP'!$H34<>""))=0,"",SRP!F34) -> 5 | K17: =IF(SUMPRODUCT(N(SRP!$E34:'SRP'!$H34<>""))=0,"",SRP!G34) -> 6 | L17: =IF(SUMPRODUCT(N(SRP!$E34:'SRP'!$H34<>""))=0,"",SRP!H34) -> 5 | M17: =IF(SUMPRODUCT(N(SRP!$I34:'SRP'!$L34<>""))=0,"",SRP!I34) -> 7 | N17: =IF(SUMPRODUCT(N(SRP!$I34:'SRP'!$L34<>""))=0,"",SRP!J34) -> 7 | O17: =IF(SUMPRODUCT(N(SRP!$I34:'SRP'!$L34<>""))=0,"",SRP!K34) -> 5 | P17: =IF(SUMPRODUCT(N(SRP!$I34:'SRP'!$L34<>""))=0,"",SRP!L34) -> 9 | Q17: =IF(SUMPRODUCT(N(SRP!$M34:'SRP'!$P34<>""))=0,"",SRP!M34) -> 9 | R17: =IF(SUMPRODUCT(N(SRP!$M34:'SRP'!$P34<>""))=0,"",SRP!N34) -> 9 | S17: =IF(SUMPRODUCT(N(SRP!$M34:'SRP'!$P34<>""))=0,"",SRP!O34) -> 8 | T17: =IF(SUMPRODUCT(N(SRP!$M34:'SRP'!$P34<>""))=0,"",SRP!P34) -> 5 | U17: =IF(SUMPRODUCT(N(SRP!$Q34:'SRP'!$X34<>""))=0,"",SRP!Q34) -> 5 | V17: =IF(SUMPRODUCT(N(SRP!$Q34:'SRP'!$X34<>""))=0,"",SRP!R34) -> 6 | W17: =IF(SUMPRODUCT(N(SRP!$Q34:'SRP'!$X34<>""))=0,"",SRP!S34) -> 6 | X17: =IF(SUMPRODUCT(N(SRP!$Q34:'SRP'!$X34<>""))=0,"",SRP!T34) -> 6 | Y17: =IF(SUMPRODUCT(N(SRP!$Q34:'SRP'!$X34<>""))=0,"",SRP!U34) -> 5 | Z17: =IF(SUMPRODUCT(N(SRP!$Q34:'SRP'!$X34<>""))=0,"",SRP!V34) -> 5 | AA17: =IF(SUMPRODUCT(N(SRP!$Q34:'SRP'!$X34<>""))=0,"",SRP!W34) -> 6 | AB17: =IF(SUMPRODUCT(N(SRP!$Q34:'SRP'!$X34<>""))=0,"",SRP!X34) -> 6 | AC17: =IF(SUMPRODUCT(N(SRP!Y34<>""))=0,"",ROUND(SRP!Y34, 2)) -> 22.92 | AD17: =IF(SUMPRODUCT(N(SRP!Z34<>""))=0,"",ROUND(SRP!Z34, 2)) -> 23.33 | AE17: =IF(SUMPRODUCT(N(SRP!AA34<>""))=0,"",ROUND(SRP!AA34, 2)) -> 17.61 | AF17: =IF(SUMPRODUCT(N(SRP!AB34<>""))=0,"",ROUND(SRP!AB34, 2)) -> 14.06 | AG17: =IF(SUMPRODUCT(N(SRP!AL34<>""))=0,"",SRP!AL34) -> 3
F18: =IF(SRP!B35<>"",ROW(F18)-2,"") -> 16 | G18: =IF(SUMPRODUCT(N(SRP!$C35<>""))=0,"",SRP!C35) -> w | H18: =IF(SUMPRODUCT(N(SRP!$D35<>""))=0,"",SRP!D35) -> RG | I18: =IF(SUMPRODUCT(N(SRP!$E35:'SRP'!$H35<>""))=0,"",SRP!E35) -> 6 | J18: =IF(SUMPRODUCT(N(SRP!$E35:'SRP'!$H35<>""))=0,"",SRP!F35) -> 6 | K18: =IF(SUMPRODUCT(N(SRP!$E35:'SRP'!$H35<>""))=0,"",SRP!G35) -> 6 | L18: =IF(SUMPRODUCT(N(SRP!$E35:'SRP'!$H35<>""))=0,"",SRP!H35) -> 6 | M18: =IF(SUMPRODUCT(N(SRP!$I35:'SRP'!$L35<>""))=0,"",SRP!I35) -> 7 | N18: =IF(SUMPRODUCT(N(SRP!$I35:'SRP'!$L35<>""))=0,"",SRP!J35) -> 7 | O18: =IF(SUMPRODUCT(N(SRP!$I35:'SRP'!$L35<>""))=0,"",SRP!K35) -> 7 | P18: =IF(SUMPRODUCT(N(SRP!$I35:'SRP'!$L35<>""))=0,"",SRP!L35) -> 9 | Q18: =IF(SUMPRODUCT(N(SRP!$M35:'SRP'!$P35<>""))=0,"",SRP!M35) -> 9 | R18: =IF(SUMPRODUCT(N(SRP!$M35:'SRP'!$P35<>""))=0,"",SRP!N35) -> 11 | S18: =IF(SUMPRODUCT(N(SRP!$M35:'SRP'!$P35<>""))=0,"",SRP!O35) -> 12 | T18: =IF(SUMPRODUCT(N(SRP!$M35:'SRP'!$P35<>""))=0,"",SRP!P35) -> 9 | U18: =IF(SUMPRODUCT(N(SRP!$Q35:'SRP'!$X35<>""))=0,"",SRP!Q35) -> 9 | V18: =IF(SUMPRODUCT(N(SRP!$Q35:'SRP'!$X35<>""))=0,"",SRP!R35) -> 9 | W18: =IF(SUMPRODUCT(N(SRP!$Q35:'SRP'!$X35<>""))=0,"",SRP!S35) -> 7 | X18: =IF(SUMPRODUCT(N(SRP!$Q35:'SRP'!$X35<>""))=0,"",SRP!T35) -> 6 | Y18: =IF(SUMPRODUCT(N(SRP!$Q35:'SRP'!$X35<>""))=0,"",SRP!U35) -> 6 | Z18: =IF(SUMPRODUCT(N(SRP!$Q35:'SRP'!$X35<>""))=0,"",SRP!V35) -> 5 | AA18: =IF(SUMPRODUCT(N(SRP!$Q35:'SRP'!$X35<>""))=0,"",SRP!W35) -> 5 | AB18: =IF(SUMPRODUCT(N(SRP!$Q35:'SRP'!$X35<>""))=0,"",SRP!X35) -> 5 | AC18: =IF(SUMPRODUCT(N(SRP!Y35<>""))=0,"",ROUND(SRP!Y35, 2)) -> 25 | AD18: =IF(SUMPRODUCT(N(SRP!Z35<>""))=0,"",ROUND(SRP!Z35, 2)) -> 25 | AE18: =IF(SUMPRODUCT(N(SRP!AA35<>""))=0,"",ROUND(SRP!AA35, 2)) -> 23.3 | AF18: =IF(SUMPRODUCT(N(SRP!AB35<>""))=0,"",ROUND(SRP!AB35, 2)) -> 16.25 | AG18: =IF(SUMPRODUCT(N(SRP!AL35<>""))=0,"",SRP!AL35) -> 2
F19: =IF(SRP!B36<>"",ROW(F19)-2,"") -> 17 | G19: =IF(SUMPRODUCT(N(SRP!$C36<>""))=0,"",SRP!C36) -> w | H19: =IF(SUMPRODUCT(N(SRP!$D36<>""))=0,"",SRP!D36) -> RG | I19: =IF(SUMPRODUCT(N(SRP!$E36:'SRP'!$H36<>""))=0,"",SRP!E36) -> 6 | J19: =IF(SUMPRODUCT(N(SRP!$E36:'SRP'!$H36<>""))=0,"",SRP!F36) -> 6 | K19: =IF(SUMPRODUCT(N(SRP!$E36:'SRP'!$H36<>""))=0,"",SRP!G36) -> 6 | L19: =IF(SUMPRODUCT(N(SRP!$E36:'SRP'!$H36<>""))=0,"",SRP!H36) -> 5 | M19: =IF(SUMPRODUCT(N(SRP!$I36:'SRP'!$L36<>""))=0,"",SRP!I36) -> 7 | N19: =IF(SUMPRODUCT(N(SRP!$I36:'SRP'!$L36<>""))=0,"",SRP!J36) -> 6 | O19: =IF(SUMPRODUCT(N(SRP!$I36:'SRP'!$L36<>""))=0,"",SRP!K36) -> 7 | P19: =IF(SUMPRODUCT(N(SRP!$I36:'SRP'!$L36<>""))=0,"",SRP!L36) -> 8 | Q19: =IF(SUMPRODUCT(N(SRP!$M36:'SRP'!$P36<>""))=0,"",SRP!M36) -> 8 | R19: =IF(SUMPRODUCT(N(SRP!$M36:'SRP'!$P36<>""))=0,"",SRP!N36) -> 11 | S19: =IF(SUMPRODUCT(N(SRP!$M36:'SRP'!$P36<>""))=0,"",SRP!O36) -> 11 | T19: =IF(SUMPRODUCT(N(SRP!$M36:'SRP'!$P36<>""))=0,"",SRP!P36) -> 7 | U19: =IF(SUMPRODUCT(N(SRP!$Q36:'SRP'!$X36<>""))=0,"",SRP!Q36) -> 5 | V19: =IF(SUMPRODUCT(N(SRP!$Q36:'SRP'!$X36<>""))=0,"",SRP!R36) -> 5 | W19: =IF(SUMPRODUCT(N(SRP!$Q36:'SRP'!$X36<>""))=0,"",SRP!S36) -> 6 | X19: =IF(SUMPRODUCT(N(SRP!$Q36:'SRP'!$X36<>""))=0,"",SRP!T36) -> 6 | Y19: =IF(SUMPRODUCT(N(SRP!$Q36:'SRP'!$X36<>""))=0,"",SRP!U36) -> 5 | Z19: =IF(SUMPRODUCT(N(SRP!$Q36:'SRP'!$X36<>""))=0,"",SRP!V36) -> 6 | AA19: =IF(SUMPRODUCT(N(SRP!$Q36:'SRP'!$X36<>""))=0,"",SRP!W36) -> 6 | AB19: =IF(SUMPRODUCT(N(SRP!$Q36:'SRP'!$X36<>""))=0,"",SRP!X36) -> 6 | AC19: =IF(SUMPRODUCT(N(SRP!Y36<>""))=0,"",ROUND(SRP!Y36, 2)) -> 23.96 | AD19: =IF(SUMPRODUCT(N(SRP!Z36<>""))=0,"",ROUND(SRP!Z36, 2)) -> 23.33 | AE19: =IF(SUMPRODUCT(N(SRP!AA36<>""))=0,"",ROUND(SRP!AA36, 2)) -> 21.02 | AF19: =IF(SUMPRODUCT(N(SRP!AB36<>""))=0,"",ROUND(SRP!AB36, 2)) -> 14.06 | AG19: =IF(SUMPRODUCT(N(SRP!AL36<>""))=0,"",SRP!AL36) -> 2
F20: =IF(SRP!B37<>"",ROW(F20)-2,"") -> 18 | G20: =IF(SUMPRODUCT(N(SRP!$C37<>""))=0,"",SRP!C37) -> m | H20: =IF(SUMPRODUCT(N(SRP!$D37<>""))=0,"",SRP!D37) -> RG | I20: =IF(SUMPRODUCT(N(SRP!$E37:'SRP'!$H37<>""))=0,"",SRP!E37) -> 6 | J20: =IF(SUMPRODUCT(N(SRP!$E37:'SRP'!$H37<>""))=0,"",SRP!F37) -> 6 | K20: =IF(SUMPRODUCT(N(SRP!$E37:'SRP'!$H37<>""))=0,"",SRP!G37) -> 6 | L20: =IF(SUMPRODUCT(N(SRP!$E37:'SRP'!$H37<>""))=0,"",SRP!H37) -> 6 | M20: =IF(SUMPRODUCT(N(SRP!$I37:'SRP'!$L37<>""))=0,"",SRP!I37) -> 7 | N20: =IF(SUMPRODUCT(N(SRP!$I37:'SRP'!$L37<>""))=0,"",SRP!J37) -> 6 | O20: =IF(SUMPRODUCT(N(SRP!$I37:'SRP'!$L37<>""))=0,"",SRP!K37) -> 7 | P20: =IF(SUMPRODUCT(N(SRP!$I37:'SRP'!$L37<>""))=0,"",SRP!L37) -> 9 | Q20: =IF(SUMPRODUCT(N(SRP!$M37:'SRP'!$P37<>""))=0,"",SRP!M37) -> 11 | R20: =IF(SUMPRODUCT(N(SRP!$M37:'SRP'!$P37<>""))=0,"",SRP!N37) -> 11 | S20: =IF(SUMPRODUCT(N(SRP!$M37:'SRP'!$P37<>""))=0,"",SRP!O37) -> 13 | T20: =IF(SUMPRODUCT(N(SRP!$M37:'SRP'!$P37<>""))=0,"",SRP!P37) -> 9 | U20: =IF(SUMPRODUCT(N(SRP!$Q37:'SRP'!$X37<>""))=0,"",SRP!Q37) -> 9 | V20: =IF(SUMPRODUCT(N(SRP!$Q37:'SRP'!$X37<>""))=0,"",SRP!R37) -> 9 | W20: =IF(SUMPRODUCT(N(SRP!$Q37:'SRP'!$X37<>""))=0,"",SRP!S37) -> 8 | X20: =IF(SUMPRODUCT(N(SRP!$Q37:'SRP'!$X37<>""))=0,"",SRP!T37) -> 8 | Y20: =IF(SUMPRODUCT(N(SRP!$Q37:'SRP'!$X37<>""))=0,"",SRP!U37) -> 8 | Z20: =IF(SUMPRODUCT(N(SRP!$Q37:'SRP'!$X37<>""))=0,"",SRP!V37) -> 8 | AA20: =IF(SUMPRODUCT(N(SRP!$Q37:'SRP'!$X37<>""))=0,"",SRP!W37) -> 8 | AB20: =IF(SUMPRODUCT(N(SRP!$Q37:'SRP'!$X37<>""))=0,"",SRP!X37) -> 8 | AC20: =IF(SUMPRODUCT(N(SRP!Y37<>""))=0,"",ROUND(SRP!Y37, 2)) -> 25 | AD20: =IF(SUMPRODUCT(N(SRP!Z37<>""))=0,"",ROUND(SRP!Z37, 2)) -> 24.17 | AE20: =IF(SUMPRODUCT(N(SRP!AA37<>""))=0,"",ROUND(SRP!AA37, 2)) -> 25 | AF20: =IF(SUMPRODUCT(N(SRP!AB37<>""))=0,"",ROUND(SRP!AB37, 2)) -> 20.63 | AG20: =IF(SUMPRODUCT(N(SRP!AL37<>""))=0,"",SRP!AL37) -> 1
F21: =IF(SRP!B38<>"",ROW(F21)-2,"") -> 19 | G21: =IF(SUMPRODUCT(N(SRP!$C38<>""))=0,"",SRP!C38) -> w | H21: =IF(SUMPRODUCT(N(SRP!$D38<>""))=0,"",SRP!D38) -> RG | I21: =IF(SUMPRODUCT(N(SRP!$E38:'SRP'!$H38<>""))=0,"",SRP!E38) -> 6 | J21: =IF(SUMPRODUCT(N(SRP!$E38:'SRP'!$H38<>""))=0,"",SRP!F38) -> 6 | K21: =IF(SUMPRODUCT(N(SRP!$E38:'SRP'!$H38<>""))=0,"",SRP!G38) -> 6 | L21: =IF(SUMPRODUCT(N(SRP!$E38:'SRP'!$H38<>""))=0,"",SRP!H38) -> 6 | M21: =IF(SUMPRODUCT(N(SRP!$I38:'SRP'!$L38<>""))=0,"",SRP!I38) -> 7 | N21: =IF(SUMPRODUCT(N(SRP!$I38:'SRP'!$L38<>""))=0,"",SRP!J38) -> 7 | O21: =IF(SUMPRODUCT(N(SRP!$I38:'SRP'!$L38<>""))=0,"",SRP!K38) -> 6 | P21: =IF(SUMPRODUCT(N(SRP!$I38:'SRP'!$L38<>""))=0,"",SRP!L38) -> 9 | Q21: =IF(SUMPRODUCT(N(SRP!$M38:'SRP'!$P38<>""))=0,"",SRP!M38) -> 5 | R21: =IF(SUMPRODUCT(N(SRP!$M38:'SRP'!$P38<>""))=0,"",SRP!N38) -> 7 | S21: =IF(SUMPRODUCT(N(SRP!$M38:'SRP'!$P38<>""))=0,"",SRP!O38) -> 9 | T21: =IF(SUMPRODUCT(N(SRP!$M38:'SRP'!$P38<>""))=0,"",SRP!P38) -> 3 | U21: =IF(SUMPRODUCT(N(SRP!$Q38:'SRP'!$X38<>""))=0,"",SRP!Q38) -> 8 | V21: =IF(SUMPRODUCT(N(SRP!$Q38:'SRP'!$X38<>""))=0,"",SRP!R38) -> 7 | W21: =IF(SUMPRODUCT(N(SRP!$Q38:'SRP'!$X38<>""))=0,"",SRP!S38) -> 7 | X21: =IF(SUMPRODUCT(N(SRP!$Q38:'SRP'!$X38<>""))=0,"",SRP!T38) -> 7 | Y21: =IF(SUMPRODUCT(N(SRP!$Q38:'SRP'!$X38<>""))=0,"",SRP!U38) -> 6 | Z21: =IF(SUMPRODUCT(N(SRP!$Q38:'SRP'!$X38<>""))=0,"",SRP!V38) -> 6 | AA21: =IF(SUMPRODUCT(N(SRP!$Q38:'SRP'!$X38<>""))=0,"",SRP!W38) -> 6 | AB21: =IF(SUMPRODUCT(N(SRP!$Q38:'SRP'!$X38<>""))=0,"",SRP!X38) -> 6 | AC21: =IF(SUMPRODUCT(N(SRP!Y38<>""))=0,"",ROUND(SRP!Y38, 2)) -> 25 | AD21: =IF(SUMPRODUCT(N(SRP!Z38<>""))=0,"",ROUND(SRP!Z38, 2)) -> 24.17 | AE21: =IF(SUMPRODUCT(N(SRP!AA38<>""))=0,"",ROUND(SRP!AA38, 2)) -> 13.64 | AF21: =IF(SUMPRODUCT(N(SRP!AB38<>""))=0,"",ROUND(SRP!AB38, 2)) -> 16.56 | AG21: =IF(SUMPRODUCT(N(SRP!AL38<>""))=0,"",SRP!AL38) -> 3
F22: =IF(SRP!B39<>"",ROW(F22)-2,"") -> 20 | G22: =IF(SUMPRODUCT(N(SRP!$C39<>""))=0,"",SRP!C39) -> w | H22: =IF(SUMPRODUCT(N(SRP!$D39<>""))=0,"",SRP!D39) -> RG | I22: =IF(SUMPRODUCT(N(SRP!$E39:'SRP'!$H39<>""))=0,"",SRP!E39) -> 4 | J22: =IF(SUMPRODUCT(N(SRP!$E39:'SRP'!$H39<>""))=0,"",SRP!F39) -> 6 | K22: =IF(SUMPRODUCT(N(SRP!$E39:'SRP'!$H39<>""))=0,"",SRP!G39) -> 6 | L22: =IF(SUMPRODUCT(N(SRP!$E39:'SRP'!$H39<>""))=0,"",SRP!H39) -> 6 | M22: =IF(SUMPRODUCT(N(SRP!$I39:'SRP'!$L39<>""))=0,"",SRP!I39) -> 7 | N22: =IF(SUMPRODUCT(N(SRP!$I39:'SRP'!$L39<>""))=0,"",SRP!J39) -> 7 | O22: =IF(SUMPRODUCT(N(SRP!$I39:'SRP'!$L39<>""))=0,"",SRP!K39) -> 7 | P22: =IF(SUMPRODUCT(N(SRP!$I39:'SRP'!$L39<>""))=0,"",SRP!L39) -> 9 | Q22: =IF(SUMPRODUCT(N(SRP!$M39:'SRP'!$P39<>""))=0,"",SRP!M39) -> 11 | R22: =IF(SUMPRODUCT(N(SRP!$M39:'SRP'!$P39<>""))=0,"",SRP!N39) -> 11 | S22: =IF(SUMPRODUCT(N(SRP!$M39:'SRP'!$P39<>""))=0,"",SRP!O39) -> 13 | T22: =IF(SUMPRODUCT(N(SRP!$M39:'SRP'!$P39<>""))=0,"",SRP!P39) -> 9 | U22: =IF(SUMPRODUCT(N(SRP!$Q39:'SRP'!$X39<>""))=0,"",SRP!Q39) -> 10 | V22: =IF(SUMPRODUCT(N(SRP!$Q39:'SRP'!$X39<>""))=0,"",SRP!R39) -> 10 | W22: =IF(SUMPRODUCT(N(SRP!$Q39:'SRP'!$X39<>""))=0,"",SRP!S39) -> 9 | X22: =IF(SUMPRODUCT(N(SRP!$Q39:'SRP'!$X39<>""))=0,"",SRP!T39) -> 8 | Y22: =IF(SUMPRODUCT(N(SRP!$Q39:'SRP'!$X39<>""))=0,"",SRP!U39) -> 8 | Z22: =IF(SUMPRODUCT(N(SRP!$Q39:'SRP'!$X39<>""))=0,"",SRP!V39) -> 10 | AA22: =IF(SUMPRODUCT(N(SRP!$Q39:'SRP'!$X39<>""))=0,"",SRP!W39) -> 10 | AB22: =IF(SUMPRODUCT(N(SRP!$Q39:'SRP'!$X39<>""))=0,"",SRP!X39) -> 10 | AC22: =IF(SUMPRODUCT(N(SRP!Y39<>""))=0,"",ROUND(SRP!Y39, 2)) -> 22.92 | AD22: =IF(SUMPRODUCT(N(SRP!Z39<>""))=0,"",ROUND(SRP!Z39, 2)) -> 25 | AE22: =IF(SUMPRODUCT(N(SRP!AA39<>""))=0,"",ROUND(SRP!AA39, 2)) -> 25 | AF22: =IF(SUMPRODUCT(N(SRP!AB39<>""))=0,"",ROUND(SRP!AB39, 2)) -> 23.44 | AG22: =IF(SUMPRODUCT(N(SRP!AL39<>""))=0,"",SRP!AL39) -> 1
F23: =IF(SRP!B40<>"",ROW(F23)-2,"") -> 21 | G23: =IF(SUMPRODUCT(N(SRP!$C40<>""))=0,"",SRP!C40) -> w | H23: =IF(SUMPRODUCT(N(SRP!$D40<>""))=0,"",SRP!D40) -> RG | I23: =IF(SUMPRODUCT(N(SRP!$E40:'SRP'!$H40<>""))=0,"",SRP!E40) -> 6 | J23: =IF(SUMPRODUCT(N(SRP!$E40:'SRP'!$H40<>""))=0,"",SRP!F40) -> 6 | K23: =IF(SUMPRODUCT(N(SRP!$E40:'SRP'!$H40<>""))=0,"",SRP!G40) -> 6 | L23: =IF(SUMPRODUCT(N(SRP!$E40:'SRP'!$H40<>""))=0,"",SRP!H40) -> 6 | M23: =IF(SUMPRODUCT(N(SRP!$I40:'SRP'!$L40<>""))=0,"",SRP!I40) -> 7 | N23: =IF(SUMPRODUCT(N(SRP!$I40:'SRP'!$L40<>""))=0,"",SRP!J40) -> 7 | O23: =IF(SUMPRODUCT(N(SRP!$I40:'SRP'!$L40<>""))=0,"",SRP!K40) -> 6 | P23: =IF(SUMPRODUCT(N(SRP!$I40:'SRP'!$L40<>""))=0,"",SRP!L40) -> 9 | Q23: =IF(SUMPRODUCT(N(SRP!$M40:'SRP'!$P40<>""))=0,"",SRP!M40) -> 11 | R23: =IF(SUMPRODUCT(N(SRP!$M40:'SRP'!$P40<>""))=0,"",SRP!N40) -> 11 | S23: =IF(SUMPRODUCT(N(SRP!$M40:'SRP'!$P40<>""))=0,"",SRP!O40) -> 12 | T23: =IF(SUMPRODUCT(N(SRP!$M40:'SRP'!$P40<>""))=0,"",SRP!P40) -> 9 | U23: =IF(SUMPRODUCT(N(SRP!$Q40:'SRP'!$X40<>""))=0,"",SRP!Q40) -> 8 | V23: =IF(SUMPRODUCT(N(SRP!$Q40:'SRP'!$X40<>""))=0,"",SRP!R40) -> 10 | W23: =IF(SUMPRODUCT(N(SRP!$Q40:'SRP'!$X40<>""))=0,"",SRP!S40) -> 8 | X23: =IF(SUMPRODUCT(N(SRP!$Q40:'SRP'!$X40<>""))=0,"",SRP!T40) -> 8 | Y23: =IF(SUMPRODUCT(N(SRP!$Q40:'SRP'!$X40<>""))=0,"",SRP!U40) -> 6 | Z23: =IF(SUMPRODUCT(N(SRP!$Q40:'SRP'!$X40<>""))=0,"",SRP!V40) -> 8 | AA23: =IF(SUMPRODUCT(N(SRP!$Q40:'SRP'!$X40<>""))=0,"",SRP!W40) -> 8 | AB23: =IF(SUMPRODUCT(N(SRP!$Q40:'SRP'!$X40<>""))=0,"",SRP!X40) -> 8 | AC23: =IF(SUMPRODUCT(N(SRP!Y40<>""))=0,"",ROUND(SRP!Y40, 2)) -> 25 | AD23: =IF(SUMPRODUCT(N(SRP!Z40<>""))=0,"",ROUND(SRP!Z40, 2)) -> 24.17 | AE23: =IF(SUMPRODUCT(N(SRP!AA40<>""))=0,"",ROUND(SRP!AA40, 2)) -> 24.43 | AF23: =IF(SUMPRODUCT(N(SRP!AB40<>""))=0,"",ROUND(SRP!AB40, 2)) -> 20 | AG23: =IF(SUMPRODUCT(N(SRP!AL40<>""))=0,"",SRP!AL40) -> 1
F24: =IF(SRP!B41<>"",ROW(F24)-2,"") -> 22 | G24: =IF(SUMPRODUCT(N(SRP!$C41<>""))=0,"",SRP!C41) -> m | H24: =IF(SUMPRODUCT(N(SRP!$D41<>""))=0,"",SRP!D41) -> RG | I24: =IF(SUMPRODUCT(N(SRP!$E41:'SRP'!$H41<>""))=0,"",SRP!E41) -> 6 | J24: =IF(SUMPRODUCT(N(SRP!$E41:'SRP'!$H41<>""))=0,"",SRP!F41) -> 6 | K24: =IF(SUMPRODUCT(N(SRP!$E41:'SRP'!$H41<>""))=0,"",SRP!G41) -> 6 | L24: =IF(SUMPRODUCT(N(SRP!$E41:'SRP'!$H41<>""))=0,"",SRP!H41) -> 6 | M24: =IF(SUMPRODUCT(N(SRP!$I41:'SRP'!$L41<>""))=0,"",SRP!I41) -> 7 | N24: =IF(SUMPRODUCT(N(SRP!$I41:'SRP'!$L41<>""))=0,"",SRP!J41) -> 7 | O24: =IF(SUMPRODUCT(N(SRP!$I41:'SRP'!$L41<>""))=0,"",SRP!K41) -> 7 | P24: =IF(SUMPRODUCT(N(SRP!$I41:'SRP'!$L41<>""))=0,"",SRP!L41) -> 9 | Q24: =IF(SUMPRODUCT(N(SRP!$M41:'SRP'!$P41<>""))=0,"",SRP!M41) -> 11 | R24: =IF(SUMPRODUCT(N(SRP!$M41:'SRP'!$P41<>""))=0,"",SRP!N41) -> 11 | S24: =IF(SUMPRODUCT(N(SRP!$M41:'SRP'!$P41<>""))=0,"",SRP!O41) -> 13 | T24: =IF(SUMPRODUCT(N(SRP!$M41:'SRP'!$P41<>""))=0,"",SRP!P41) -> 7 | U24: =IF(SUMPRODUCT(N(SRP!$Q41:'SRP'!$X41<>""))=0,"",SRP!Q41) -> 10 | V24: =IF(SUMPRODUCT(N(SRP!$Q41:'SRP'!$X41<>""))=0,"",SRP!R41) -> 10 | W24: =IF(SUMPRODUCT(N(SRP!$Q41:'SRP'!$X41<>""))=0,"",SRP!S41) -> 10 | X24: =IF(SUMPRODUCT(N(SRP!$Q41:'SRP'!$X41<>""))=0,"",SRP!T41) -> 10 | Y24: =IF(SUMPRODUCT(N(SRP!$Q41:'SRP'!$X41<>""))=0,"",SRP!U41) -> 10 | Z24: =IF(SUMPRODUCT(N(SRP!$Q41:'SRP'!$X41<>""))=0,"",SRP!V41) -> 10 | AA24: =IF(SUMPRODUCT(N(SRP!$Q41:'SRP'!$X41<>""))=0,"",SRP!W41) -> 10 | AB24: =IF(SUMPRODUCT(N(SRP!$Q41:'SRP'!$X41<>""))=0,"",SRP!X41) -> 10 | AC24: =IF(SUMPRODUCT(N(SRP!Y41<>""))=0,"",ROUND(SRP!Y41, 2)) -> 25 | AD24: =IF(SUMPRODUCT(N(SRP!Z41<>""))=0,"",ROUND(SRP!Z41, 2)) -> 25 | AE24: =IF(SUMPRODUCT(N(SRP!AA41<>""))=0,"",ROUND(SRP!AA41, 2)) -> 23.86 | AF24: =IF(SUMPRODUCT(N(SRP!AB41<>""))=0,"",ROUND(SRP!AB41, 2)) -> 25 | AG24: =IF(SUMPRODUCT(N(SRP!AL41<>""))=0,"",SRP!AL41) -> 1
F25: =IF(SRP!B42<>"",ROW(F25)-2,"") ->  | G25: =IF(SUMPRODUCT(N(SRP!$C42<>""))=0,"",SRP!C42) ->  | H25: =IF(SUMPRODUCT(N(SRP!$D42<>""))=0,"",SRP!D42) ->  | I25: =IF(SUMPRODUCT(N(SRP!$E42:'SRP'!$H42<>""))=0,"",SRP!E42) ->  | J25: =IF(SUMPRODUCT(N(SRP!$E42:'SRP'!$H42<>""))=0,"",SRP!F42) ->  | K25: =IF(SUMPRODUCT(N(SRP!$E42:'SRP'!$H42<>""))=0,"",SRP!G42) ->  | L25: =IF(SUMPRODUCT(N(SRP!$E42:'SRP'!$H42<>""))=0,"",SRP!H42) ->  | M25: =IF(SUMPRODUCT(N(SRP!$I42:'SRP'!$L42<>""))=0,"",SRP!I42) ->  | N25: =IF(SUMPRODUCT(N(SRP!$I42:'SRP'!$L42<>""))=0,"",SRP!J42) ->  | O25: =IF(SUMPRODUCT(N(SRP!$I42:'SRP'!$L42<>""))=0,"",SRP!K42) ->  | P25: =IF(SUMPRODUCT(N(SRP!$I42:'SRP'!$L42<>""))=0,"",SRP!L42) ->  | Q25: =IF(SUMPRODUCT(N(SRP!$M42:'SRP'!$P42<>""))=0,"",SRP!M42) ->  | R25: =IF(SUMPRODUCT(N(SRP!$M42:'SRP'!$P42<>""))=0,"",SRP!N42) ->  | S25: =IF(SUMPRODUCT(N(SRP!$M42:'SRP'!$P42<>""))=0,"",SRP!O42) ->  | T25: =IF(SUMPRODUCT(N(SRP!$M42:'SRP'!$P42<>""))=0,"",SRP!P42) ->  | U25: =IF(SUMPRODUCT(N(SRP!$Q42:'SRP'!$X42<>""))=0,"",SRP!Q42) ->  | V25: =IF(SUMPRODUCT(N(SRP!$Q42:'SRP'!$X42<>""))=0,"",SRP!R42) ->  | W25: =IF(SUMPRODUCT(N(SRP!$Q42:'SRP'!$X42<>""))=0,"",SRP!S42) ->  | X25: =IF(SUMPRODUCT(N(SRP!$Q42:'SRP'!$X42<>""))=0,"",SRP!T42) ->  | Y25: =IF(SUMPRODUCT(N(SRP!$Q42:'SRP'!$X42<>""))=0,"",SRP!U42) ->  | Z25: =IF(SUMPRODUCT(N(SRP!$Q42:'SRP'!$X42<>""))=0,"",SRP!V42) ->  | AA25: =IF(SUMPRODUCT(N(SRP!$Q42:'SRP'!$X42<>""))=0,"",SRP!W42) ->  | AB25: =IF(SUMPRODUCT(N(SRP!$Q42:'SRP'!$X42<>""))=0,"",SRP!X42) ->  | AC25: =IF(SUMPRODUCT(N(SRP!Y42<>""))=0,"",ROUND(SRP!Y42, 2)) ->  | AD25: =IF(SUMPRODUCT(N(SRP!Z42<>""))=0,"",ROUND(SRP!Z42, 2)) ->  | AE25: =IF(SUMPRODUCT(N(SRP!AA42<>""))=0,"",ROUND(SRP!AA42, 2)) ->  | AF25: =IF(SUMPRODUCT(N(SRP!AB42<>""))=0,"",ROUND(SRP!AB42, 2)) ->  | AG25: =IF(SUMPRODUCT(N(SRP!AL42<>""))=0,"",SRP!AL42) -> 
F26: =IF(SRP!B43<>"",ROW(F26)-2,"") ->  | G26: =IF(SUMPRODUCT(N(SRP!$C43<>""))=0,"",SRP!C43) ->  | H26: =IF(SUMPRODUCT(N(SRP!$D43<>""))=0,"",SRP!D43) ->  | I26: =IF(SUMPRODUCT(N(SRP!$E43:'SRP'!$H43<>""))=0,"",SRP!E43) ->  | J26: =IF(SUMPRODUCT(N(SRP!$E43:'SRP'!$H43<>""))=0,"",SRP!F43) ->  | K26: =IF(SUMPRODUCT(N(SRP!$E43:'SRP'!$H43<>""))=0,"",SRP!G43) ->  | L26: =IF(SUMPRODUCT(N(SRP!$E43:'SRP'!$H43<>""))=0,"",SRP!H43) ->  | M26: =IF(SUMPRODUCT(N(SRP!$I43:'SRP'!$L43<>""))=0,"",SRP!I43) ->  | N26: =IF(SUMPRODUCT(N(SRP!$I43:'SRP'!$L43<>""))=0,"",SRP!J43) ->  | O26: =IF(SUMPRODUCT(N(SRP!$I43:'SRP'!$L43<>""))=0,"",SRP!K43) ->  | P26: =IF(SUMPRODUCT(N(SRP!$I43:'SRP'!$L43<>""))=0,"",SRP!L43) ->  | Q26: =IF(SUMPRODUCT(N(SRP!$M43:'SRP'!$P43<>""))=0,"",SRP!M43) ->  | R26: =IF(SUMPRODUCT(N(SRP!$M43:'SRP'!$P43<>""))=0,"",SRP!N43) ->  | S26: =IF(SUMPRODUCT(N(SRP!$M43:'SRP'!$P43<>""))=0,"",SRP!O43) ->  | T26: =IF(SUMPRODUCT(N(SRP!$M43:'SRP'!$P43<>""))=0,"",SRP!P43) ->  | U26: =IF(SUMPRODUCT(N(SRP!$Q43:'SRP'!$X43<>""))=0,"",SRP!Q43) ->  | V26: =IF(SUMPRODUCT(N(SRP!$Q43:'SRP'!$X43<>""))=0,"",SRP!R43) ->  | W26: =IF(SUMPRODUCT(N(SRP!$Q43:'SRP'!$X43<>""))=0,"",SRP!S43) ->  | X26: =IF(SUMPRODUCT(N(SRP!$Q43:'SRP'!$X43<>""))=0,"",SRP!T43) ->  | Y26: =IF(SUMPRODUCT(N(SRP!$Q43:'SRP'!$X43<>""))=0,"",SRP!U43) ->  | Z26: =IF(SUMPRODUCT(N(SRP!$Q43:'SRP'!$X43<>""))=0,"",SRP!V43) ->  | AA26: =IF(SUMPRODUCT(N(SRP!$Q43:'SRP'!$X43<>""))=0,"",SRP!W43) ->  | AB26: =IF(SUMPRODUCT(N(SRP!$Q43:'SRP'!$X43<>""))=0,"",SRP!X43) ->  | AC26: =IF(SUMPRODUCT(N(SRP!Y43<>""))=0,"",ROUND(SRP!Y43, 2)) ->  | AD26: =IF(SUMPRODUCT(N(SRP!Z43<>""))=0,"",ROUND(SRP!Z43, 2)) ->  | AE26: =IF(SUMPRODUCT(N(SRP!AA43<>""))=0,"",ROUND(SRP!AA43, 2)) ->  | AF26: =IF(SUMPRODUCT(N(SRP!AB43<>""))=0,"",ROUND(SRP!AB43, 2)) ->  | AG26: =IF(SUMPRODUCT(N(SRP!AL43<>""))=0,"",SRP!AL43) -> 
F27: =IF(SRP!B44<>"",ROW(F27)-2,"") ->  | G27: =IF(SUMPRODUCT(N(SRP!$C44<>""))=0,"",SRP!C44) ->  | H27: =IF(SUMPRODUCT(N(SRP!$D44<>""))=0,"",SRP!D44) ->  | I27: =IF(SUMPRODUCT(N(SRP!$E44:'SRP'!$H44<>""))=0,"",SRP!E44) ->  | J27: =IF(SUMPRODUCT(N(SRP!$E44:'SRP'!$H44<>""))=0,"",SRP!F44) ->  | K27: =IF(SUMPRODUCT(N(SRP!$E44:'SRP'!$H44<>""))=0,"",SRP!G44) ->  | L27: =IF(SUMPRODUCT(N(SRP!$E44:'SRP'!$H44<>""))=0,"",SRP!H44) ->  | M27: =IF(SUMPRODUCT(N(SRP!$I44:'SRP'!$L44<>""))=0,"",SRP!I44) ->  | N27: =IF(SUMPRODUCT(N(SRP!$I44:'SRP'!$L44<>""))=0,"",SRP!J44) ->  | O27: =IF(SUMPRODUCT(N(SRP!$I44:'SRP'!$L44<>""))=0,"",SRP!K44) ->  | P27: =IF(SUMPRODUCT(N(SRP!$I44:'SRP'!$L44<>""))=0,"",SRP!L44) ->  | Q27: =IF(SUMPRODUCT(N(SRP!$M44:'SRP'!$P44<>""))=0,"",SRP!M44) ->  | R27: =IF(SUMPRODUCT(N(SRP!$M44:'SRP'!$P44<>""))=0,"",SRP!N44) ->  | S27: =IF(SUMPRODUCT(N(SRP!$M44:'SRP'!$P44<>""))=0,"",SRP!O44) ->  | T27: =IF(SUMPRODUCT(N(SRP!$M44:'SRP'!$P44<>""))=0,"",SRP!P44) ->  | U27: =IF(SUMPRODUCT(N(SRP!$Q44:'SRP'!$X44<>""))=0,"",SRP!Q44) ->  | V27: =IF(SUMPRODUCT(N(SRP!$Q44:'SRP'!$X44<>""))=0,"",SRP!R44) ->  | W27: =IF(SUMPRODUCT(N(SRP!$Q44:'SRP'!$X44<>""))=0,"",SRP!S44) ->  | X27: =IF(SUMPRODUCT(N(SRP!$Q44:'SRP'!$X44<>""))=0,"",SRP!T44) ->  | Y27: =IF(SUMPRODUCT(N(SRP!$Q44:'SRP'!$X44<>""))=0,"",SRP!U44) ->  | Z27: =IF(SUMPRODUCT(N(SRP!$Q44:'SRP'!$X44<>""))=0,"",SRP!V44) ->  | AA27: =IF(SUMPRODUCT(N(SRP!$Q44:'SRP'!$X44<>""))=0,"",SRP!W44) ->  | AB27: =IF(SUMPRODUCT(N(SRP!$Q44:'SRP'!$X44<>""))=0,"",SRP!X44) ->  | AC27: =IF(SUMPRODUCT(N(SRP!Y44<>""))=0,"",ROUND(SRP!Y44, 2)) ->  | AD27: =IF(SUMPRODUCT(N(SRP!Z44<>""))=0,"",ROUND(SRP!Z44, 2)) ->  | AE27: =IF(SUMPRODUCT(N(SRP!AA44<>""))=0,"",ROUND(SRP!AA44, 2)) ->  | AF27: =IF(SUMPRODUCT(N(SRP!AB44<>""))=0,"",ROUND(SRP!AB44, 2)) ->  | AG27: =IF(SUMPRODUCT(N(SRP!AL44<>""))=0,"",SRP!AL44) -> 
F28: =IF(SRP!B45<>"",ROW(F28)-2,"") ->  | G28: =IF(SUMPRODUCT(N(SRP!$C45<>""))=0,"",SRP!C45) ->  | H28: =IF(SUMPRODUCT(N(SRP!$D45<>""))=0,"",SRP!D45) ->  | I28: =IF(SUMPRODUCT(N(SRP!$E45:'SRP'!$H45<>""))=0,"",SRP!E45) ->  | J28: =IF(SUMPRODUCT(N(SRP!$E45:'SRP'!$H45<>""))=0,"",SRP!F45) ->  | K28: =IF(SUMPRODUCT(N(SRP!$E45:'SRP'!$H45<>""))=0,"",SRP!G45) ->  | L28: =IF(SUMPRODUCT(N(SRP!$E45:'SRP'!$H45<>""))=0,"",SRP!H45) ->  | M28: =IF(SUMPRODUCT(N(SRP!$I45:'SRP'!$L45<>""))=0,"",SRP!I45) ->  | N28: =IF(SUMPRODUCT(N(SRP!$I45:'SRP'!$L45<>""))=0,"",SRP!J45) ->  | O28: =IF(SUMPRODUCT(N(SRP!$I45:'SRP'!$L45<>""))=0,"",SRP!K45) ->  | P28: =IF(SUMPRODUCT(N(SRP!$I45:'SRP'!$L45<>""))=0,"",SRP!L45) ->  | Q28: =IF(SUMPRODUCT(N(SRP!$M45:'SRP'!$P45<>""))=0,"",SRP!M45) ->  | R28: =IF(SUMPRODUCT(N(SRP!$M45:'SRP'!$P45<>""))=0,"",SRP!N45) ->  | S28: =IF(SUMPRODUCT(N(SRP!$M45:'SRP'!$P45<>""))=0,"",SRP!O45) ->  | T28: =IF(SUMPRODUCT(N(SRP!$M45:'SRP'!$P45<>""))=0,"",SRP!P45) ->  | U28: =IF(SUMPRODUCT(N(SRP!$Q45:'SRP'!$X45<>""))=0,"",SRP!Q45) ->  | V28: =IF(SUMPRODUCT(N(SRP!$Q45:'SRP'!$X45<>""))=0,"",SRP!R45) ->  | W28: =IF(SUMPRODUCT(N(SRP!$Q45:'SRP'!$X45<>""))=0,"",SRP!S45) ->  | X28: =IF(SUMPRODUCT(N(SRP!$Q45:'SRP'!$X45<>""))=0,"",SRP!T45) ->  | Y28: =IF(SUMPRODUCT(N(SRP!$Q45:'SRP'!$X45<>""))=0,"",SRP!U45) ->  | Z28: =IF(SUMPRODUCT(N(SRP!$Q45:'SRP'!$X45<>""))=0,"",SRP!V45) ->  | AA28: =IF(SUMPRODUCT(N(SRP!$Q45:'SRP'!$X45<>""))=0,"",SRP!W45) ->  | AB28: =IF(SUMPRODUCT(N(SRP!$Q45:'SRP'!$X45<>""))=0,"",SRP!X45) ->  | AC28: =IF(SUMPRODUCT(N(SRP!Y45<>""))=0,"",ROUND(SRP!Y45, 2)) ->  | AD28: =IF(SUMPRODUCT(N(SRP!Z45<>""))=0,"",ROUND(SRP!Z45, 2)) ->  | AE28: =IF(SUMPRODUCT(N(SRP!AA45<>""))=0,"",ROUND(SRP!AA45, 2)) ->  | AF28: =IF(SUMPRODUCT(N(SRP!AB45<>""))=0,"",ROUND(SRP!AB45, 2)) ->  | AG28: =IF(SUMPRODUCT(N(SRP!AL45<>""))=0,"",SRP!AL45) -> 
F29: =IF(SRP!B46<>"",ROW(F29)-2,"") ->  | G29: =IF(SUMPRODUCT(N(SRP!$C46<>""))=0,"",SRP!C46) ->  | H29: =IF(SUMPRODUCT(N(SRP!$D46<>""))=0,"",SRP!D46) ->  | I29: =IF(SUMPRODUCT(N(SRP!$E46:'SRP'!$H46<>""))=0,"",SRP!E46) ->  | J29: =IF(SUMPRODUCT(N(SRP!$E46:'SRP'!$H46<>""))=0,"",SRP!F46) ->  | K29: =IF(SUMPRODUCT(N(SRP!$E46:'SRP'!$H46<>""))=0,"",SRP!G46) ->  | L29: =IF(SUMPRODUCT(N(SRP!$E46:'SRP'!$H46<>""))=0,"",SRP!H46) ->  | M29: =IF(SUMPRODUCT(N(SRP!$I46:'SRP'!$L46<>""))=0,"",SRP!I46) ->  | N29: =IF(SUMPRODUCT(N(SRP!$I46:'SRP'!$L46<>""))=0,"",SRP!J46) ->  | O29: =IF(SUMPRODUCT(N(SRP!$I46:'SRP'!$L46<>""))=0,"",SRP!K46) ->  | P29: =IF(SUMPRODUCT(N(SRP!$I46:'SRP'!$L46<>""))=0,"",SRP!L46) ->  | Q29: =IF(SUMPRODUCT(N(SRP!$M46:'SRP'!$P46<>""))=0,"",SRP!M46) ->  | R29: =IF(SUMPRODUCT(N(SRP!$M46:'SRP'!$P46<>""))=0,"",SRP!N46) ->  | S29: =IF(SUMPRODUCT(N(SRP!$M46:'SRP'!$P46<>""))=0,"",SRP!O46) ->  | T29: =IF(SUMPRODUCT(N(SRP!$M46:'SRP'!$P46<>""))=0,"",SRP!P46) ->  | U29: =IF(SUMPRODUCT(N(SRP!$Q46:'SRP'!$X46<>""))=0,"",SRP!Q46) ->  | V29: =IF(SUMPRODUCT(N(SRP!$Q46:'SRP'!$X46<>""))=0,"",SRP!R46) ->  | W29: =IF(SUMPRODUCT(N(SRP!$Q46:'SRP'!$X46<>""))=0,"",SRP!S46) ->  | X29: =IF(SUMPRODUCT(N(SRP!$Q46:'SRP'!$X46<>""))=0,"",SRP!T46) ->  | Y29: =IF(SUMPRODUCT(N(SRP!$Q46:'SRP'!$X46<>""))=0,"",SRP!U46) ->  | Z29: =IF(SUMPRODUCT(N(SRP!$Q46:'SRP'!$X46<>""))=0,"",SRP!V46) ->  | AA29: =IF(SUMPRODUCT(N(SRP!$Q46:'SRP'!$X46<>""))=0,"",SRP!W46) ->  | AB29: =IF(SUMPRODUCT(N(SRP!$Q46:'SRP'!$X46<>""))=0,"",SRP!X46) ->  | AC29: =IF(SUMPRODUCT(N(SRP!Y46<>""))=0,"",ROUND(SRP!Y46, 2)) ->  | AD29: =IF(SUMPRODUCT(N(SRP!Z46<>""))=0,"",ROUND(SRP!Z46, 2)) ->  | AE29: =IF(SUMPRODUCT(N(SRP!AA46<>""))=0,"",ROUND(SRP!AA46, 2)) ->  | AF29: =IF(SUMPRODUCT(N(SRP!AB46<>""))=0,"",ROUND(SRP!AB46, 2)) ->  | AG29: =IF(SUMPRODUCT(N(SRP!AL46<>""))=0,"",SRP!AL46) -> 
F30: =IF(SRP!B47<>"",ROW(F30)-2,"") ->  | G30: =IF(SUMPRODUCT(N(SRP!$C47<>""))=0,"",SRP!C47) ->  | H30: =IF(SUMPRODUCT(N(SRP!$D47<>""))=0,"",SRP!D47) ->  | I30: =IF(SUMPRODUCT(N(SRP!$E47:'SRP'!$H47<>""))=0,"",SRP!E47) ->  | J30: =IF(SUMPRODUCT(N(SRP!$E47:'SRP'!$H47<>""))=0,"",SRP!F47) ->  | K30: =IF(SUMPRODUCT(N(SRP!$E47:'SRP'!$H47<>""))=0,"",SRP!G47) ->  | L30: =IF(SUMPRODUCT(N(SRP!$E47:'SRP'!$H47<>""))=0,"",SRP!H47) ->  | M30: =IF(SUMPRODUCT(N(SRP!$I47:'SRP'!$L47<>""))=0,"",SRP!I47) ->  | N30: =IF(SUMPRODUCT(N(SRP!$I47:'SRP'!$L47<>""))=0,"",SRP!J47) ->  | O30: =IF(SUMPRODUCT(N(SRP!$I47:'SRP'!$L47<>""))=0,"",SRP!K47) ->  | P30: =IF(SUMPRODUCT(N(SRP!$I47:'SRP'!$L47<>""))=0,"",SRP!L47) ->  | Q30: =IF(SUMPRODUCT(N(SRP!$M47:'SRP'!$P47<>""))=0,"",SRP!M47) ->  | R30: =IF(SUMPRODUCT(N(SRP!$M47:'SRP'!$P47<>""))=0,"",SRP!N47) ->  | S30: =IF(SUMPRODUCT(N(SRP!$M47:'SRP'!$P47<>""))=0,"",SRP!O47) ->  | T30: =IF(SUMPRODUCT(N(SRP!$M47:'SRP'!$P47<>""))=0,"",SRP!P47) ->  | U30: =IF(SUMPRODUCT(N(SRP!$Q47:'SRP'!$X47<>""))=0,"",SRP!Q47) ->  | V30: =IF(SUMPRODUCT(N(SRP!$Q47:'SRP'!$X47<>""))=0,"",SRP!R47) ->  | W30: =IF(SUMPRODUCT(N(SRP!$Q47:'SRP'!$X47<>""))=0,"",SRP!S47) ->  | X30: =IF(SUMPRODUCT(N(SRP!$Q47:'SRP'!$X47<>""))=0,"",SRP!T47) ->  | Y30: =IF(SUMPRODUCT(N(SRP!$Q47:'SRP'!$X47<>""))=0,"",SRP!U47) ->  | Z30: =IF(SUMPRODUCT(N(SRP!$Q47:'SRP'!$X47<>""))=0,"",SRP!V47) ->  | AA30: =IF(SUMPRODUCT(N(SRP!$Q47:'SRP'!$X47<>""))=0,"",SRP!W47) ->  | AB30: =IF(SUMPRODUCT(N(SRP!$Q47:'SRP'!$X47<>""))=0,"",SRP!X47) ->  | AC30: =IF(SUMPRODUCT(N(SRP!Y47<>""))=0,"",ROUND(SRP!Y47, 2)) ->  | AD30: =IF(SUMPRODUCT(N(SRP!Z47<>""))=0,"",ROUND(SRP!Z47, 2)) ->  | AE30: =IF(SUMPRODUCT(N(SRP!AA47<>""))=0,"",ROUND(SRP!AA47, 2)) ->  | AF30: =IF(SUMPRODUCT(N(SRP!AB47<>""))=0,"",ROUND(SRP!AB47, 2)) ->  | AG30: =IF(SUMPRODUCT(N(SRP!AL47<>""))=0,"",SRP!AL47) -> 
F31: =IF(SRP!B48<>"",ROW(F31)-2,"") ->  | G31: =IF(SUMPRODUCT(N(SRP!$C48<>""))=0,"",SRP!C48) ->  | H31: =IF(SUMPRODUCT(N(SRP!$D48<>""))=0,"",SRP!D48) ->  | I31: =IF(SUMPRODUCT(N(SRP!$E48:'SRP'!$H48<>""))=0,"",SRP!E48) ->  | J31: =IF(SUMPRODUCT(N(SRP!$E48:'SRP'!$H48<>""))=0,"",SRP!F48) ->  | K31: =IF(SUMPRODUCT(N(SRP!$E48:'SRP'!$H48<>""))=0,"",SRP!G48) ->  | L31: =IF(SUMPRODUCT(N(SRP!$E48:'SRP'!$H48<>""))=0,"",SRP!H48) ->  | M31: =IF(SUMPRODUCT(N(SRP!$I48:'SRP'!$L48<>""))=0,"",SRP!I48) ->  | N31: =IF(SUMPRODUCT(N(SRP!$I48:'SRP'!$L48<>""))=0,"",SRP!J48) ->  | O31: =IF(SUMPRODUCT(N(SRP!$I48:'SRP'!$L48<>""))=0,"",SRP!K48) ->  | P31: =IF(SUMPRODUCT(N(SRP!$I48:'SRP'!$L48<>""))=0,"",SRP!L48) ->  | Q31: =IF(SUMPRODUCT(N(SRP!$M48:'SRP'!$P48<>""))=0,"",SRP!M48) ->  | R31: =IF(SUMPRODUCT(N(SRP!$M48:'SRP'!$P48<>""))=0,"",SRP!N48) ->  | S31: =IF(SUMPRODUCT(N(SRP!$M48:'SRP'!$P48<>""))=0,"",SRP!O48) ->  | T31: =IF(SUMPRODUCT(N(SRP!$M48:'SRP'!$P48<>""))=0,"",SRP!P48) ->  | U31: =IF(SUMPRODUCT(N(SRP!$Q48:'SRP'!$X48<>""))=0,"",SRP!Q48) ->  | V31: =IF(SUMPRODUCT(N(SRP!$Q48:'SRP'!$X48<>""))=0,"",SRP!R48) ->  | W31: =IF(SUMPRODUCT(N(SRP!$Q48:'SRP'!$X48<>""))=0,"",SRP!S48) ->  | X31: =IF(SUMPRODUCT(N(SRP!$Q48:'SRP'!$X48<>""))=0,"",SRP!T48) ->  | Y31: =IF(SUMPRODUCT(N(SRP!$Q48:'SRP'!$X48<>""))=0,"",SRP!U48) ->  | Z31: =IF(SUMPRODUCT(N(SRP!$Q48:'SRP'!$X48<>""))=0,"",SRP!V48) ->  | AA31: =IF(SUMPRODUCT(N(SRP!$Q48:'SRP'!$X48<>""))=0,"",SRP!W48) ->  | AB31: =IF(SUMPRODUCT(N(SRP!$Q48:'SRP'!$X48<>""))=0,"",SRP!X48) ->  | AC31: =IF(SUMPRODUCT(N(SRP!Y48<>""))=0,"",ROUND(SRP!Y48, 2)) ->  | AD31: =IF(SUMPRODUCT(N(SRP!Z48<>""))=0,"",ROUND(SRP!Z48, 2)) ->  | AE31: =IF(SUMPRODUCT(N(SRP!AA48<>""))=0,"",ROUND(SRP!AA48, 2)) ->  | AF31: =IF(SUMPRODUCT(N(SRP!AB48<>""))=0,"",ROUND(SRP!AB48, 2)) ->  | AG31: =IF(SUMPRODUCT(N(SRP!AL48<>""))=0,"",SRP!AL48) -> 
F32: =IF(SRP!B49<>"",ROW(F32)-2,"") ->  | G32: =IF(SUMPRODUCT(N(SRP!$C49<>""))=0,"",SRP!C49) ->  | H32: =IF(SUMPRODUCT(N(SRP!$D49<>""))=0,"",SRP!D49) ->  | I32: =IF(SUMPRODUCT(N(SRP!$E49:'SRP'!$H49<>""))=0,"",SRP!E49) ->  | J32: =IF(SUMPRODUCT(N(SRP!$E49:'SRP'!$H49<>""))=0,"",SRP!F49) ->  | K32: =IF(SUMPRODUCT(N(SRP!$E49:'SRP'!$H49<>""))=0,"",SRP!G49) ->  | L32: =IF(SUMPRODUCT(N(SRP!$E49:'SRP'!$H49<>""))=0,"",SRP!H49) ->  | M32: =IF(SUMPRODUCT(N(SRP!$I49:'SRP'!$L49<>""))=0,"",SRP!I49) ->  | N32: =IF(SUMPRODUCT(N(SRP!$I49:'SRP'!$L49<>""))=0,"",SRP!J49) ->  | O32: =IF(SUMPRODUCT(N(SRP!$I49:'SRP'!$L49<>""))=0,"",SRP!K49) ->  | P32: =IF(SUMPRODUCT(N(SRP!$I49:'SRP'!$L49<>""))=0,"",SRP!L49) ->  | Q32: =IF(SUMPRODUCT(N(SRP!$M49:'SRP'!$P49<>""))=0,"",SRP!M49) ->  | R32: =IF(SUMPRODUCT(N(SRP!$M49:'SRP'!$P49<>""))=0,"",SRP!N49) ->  | S32: =IF(SUMPRODUCT(N(SRP!$M49:'SRP'!$P49<>""))=0,"",SRP!O49) ->  | T32: =IF(SUMPRODUCT(N(SRP!$M49:'SRP'!$P49<>""))=0,"",SRP!P49) ->  | U32: =IF(SUMPRODUCT(N(SRP!$Q49:'SRP'!$X49<>""))=0,"",SRP!Q49) ->  | V32: =IF(SUMPRODUCT(N(SRP!$Q49:'SRP'!$X49<>""))=0,"",SRP!R49) ->  | W32: =IF(SUMPRODUCT(N(SRP!$Q49:'SRP'!$X49<>""))=0,"",SRP!S49) ->  | X32: =IF(SUMPRODUCT(N(SRP!$Q49:'SRP'!$X49<>""))=0,"",SRP!T49) ->  | Y32: =IF(SUMPRODUCT(N(SRP!$Q49:'SRP'!$X49<>""))=0,"",SRP!U49) ->  | Z32: =IF(SUMPRODUCT(N(SRP!$Q49:'SRP'!$X49<>""))=0,"",SRP!V49) ->  | AA32: =IF(SUMPRODUCT(N(SRP!$Q49:'SRP'!$X49<>""))=0,"",SRP!W49) ->  | AB32: =IF(SUMPRODUCT(N(SRP!$Q49:'SRP'!$X49<>""))=0,"",SRP!X49) ->  | AC32: =IF(SUMPRODUCT(N(SRP!Y49<>""))=0,"",ROUND(SRP!Y49, 2)) ->  | AD32: =IF(SUMPRODUCT(N(SRP!Z49<>""))=0,"",ROUND(SRP!Z49, 2)) ->  | AE32: =IF(SUMPRODUCT(N(SRP!AA49<>""))=0,"",ROUND(SRP!AA49, 2)) ->  | AF32: =IF(SUMPRODUCT(N(SRP!AB49<>""))=0,"",ROUND(SRP!AB49, 2)) ->  | AG32: =IF(SUMPRODUCT(N(SRP!AL49<>""))=0,"",SRP!AL49) -> 
F33: =IF(SRP!B50<>"",ROW(F33)-2,"") ->  | G33: =IF(SUMPRODUCT(N(SRP!$C50<>""))=0,"",SRP!C50) ->  | H33: =IF(SUMPRODUCT(N(SRP!$D50<>""))=0,"",SRP!D50) ->  | I33: =IF(SUMPRODUCT(N(SRP!$E50:'SRP'!$H50<>""))=0,"",SRP!E50) ->  | J33: =IF(SUMPRODUCT(N(SRP!$E50:'SRP'!$H50<>""))=0,"",SRP!F50) ->  | K33: =IF(SUMPRODUCT(N(SRP!$E50:'SRP'!$H50<>""))=0,"",SRP!G50) ->  | L33: =IF(SUMPRODUCT(N(SRP!$E50:'SRP'!$H50<>""))=0,"",SRP!H50) ->  | M33: =IF(SUMPRODUCT(N(SRP!$I50:'SRP'!$L50<>""))=0,"",SRP!I50) ->  | N33: =IF(SUMPRODUCT(N(SRP!$I50:'SRP'!$L50<>""))=0,"",SRP!J50) ->  | O33: =IF(SUMPRODUCT(N(SRP!$I50:'SRP'!$L50<>""))=0,"",SRP!K50) ->  | P33: =IF(SUMPRODUCT(N(SRP!$I50:'SRP'!$L50<>""))=0,"",SRP!L50) ->  | Q33: =IF(SUMPRODUCT(N(SRP!$M50:'SRP'!$P50<>""))=0,"",SRP!M50) ->  | R33: =IF(SUMPRODUCT(N(SRP!$M50:'SRP'!$P50<>""))=0,"",SRP!N50) ->  | S33: =IF(SUMPRODUCT(N(SRP!$M50:'SRP'!$P50<>""))=0,"",SRP!O50) ->  | T33: =IF(SUMPRODUCT(N(SRP!$M50:'SRP'!$P50<>""))=0,"",SRP!P50) ->  | U33: =IF(SUMPRODUCT(N(SRP!$Q50:'SRP'!$X50<>""))=0,"",SRP!Q50) ->  | V33: =IF(SUMPRODUCT(N(SRP!$Q50:'SRP'!$X50<>""))=0,"",SRP!R50) ->  | W33: =IF(SUMPRODUCT(N(SRP!$Q50:'SRP'!$X50<>""))=0,"",SRP!S50) ->  | X33: =IF(SUMPRODUCT(N(SRP!$Q50:'SRP'!$X50<>""))=0,"",SRP!T50) ->  | Y33: =IF(SUMPRODUCT(N(SRP!$Q50:'SRP'!$X50<>""))=0,"",SRP!U50) ->  | Z33: =IF(SUMPRODUCT(N(SRP!$Q50:'SRP'!$X50<>""))=0,"",SRP!V50) ->  | AA33: =IF(SUMPRODUCT(N(SRP!$Q50:'SRP'!$X50<>""))=0,"",SRP!W50) ->  | AB33: =IF(SUMPRODUCT(N(SRP!$Q50:'SRP'!$X50<>""))=0,"",SRP!X50) ->  | AC33: =IF(SUMPRODUCT(N(SRP!Y50<>""))=0,"",ROUND(SRP!Y50, 2)) ->  | AD33: =IF(SUMPRODUCT(N(SRP!Z50<>""))=0,"",ROUND(SRP!Z50, 2)) ->  | AE33: =IF(SUMPRODUCT(N(SRP!AA50<>""))=0,"",ROUND(SRP!AA50, 2)) ->  | AF33: =IF(SUMPRODUCT(N(SRP!AB50<>""))=0,"",ROUND(SRP!AB50, 2)) ->  | AG33: =IF(SUMPRODUCT(N(SRP!AL50<>""))=0,"",SRP!AL50) -> 
F34: =IF(SRP!B51<>"",ROW(F34)-2,"") ->  | G34: =IF(SUMPRODUCT(N(SRP!$C51<>""))=0,"",SRP!C51) ->  | H34: =IF(SUMPRODUCT(N(SRP!$D51<>""))=0,"",SRP!D51) ->  | I34: =IF(SUMPRODUCT(N(SRP!$E51:'SRP'!$H51<>""))=0,"",SRP!E51) ->  | J34: =IF(SUMPRODUCT(N(SRP!$E51:'SRP'!$H51<>""))=0,"",SRP!F51) ->  | K34: =IF(SUMPRODUCT(N(SRP!$E51:'SRP'!$H51<>""))=0,"",SRP!G51) ->  | L34: =IF(SUMPRODUCT(N(SRP!$E51:'SRP'!$H51<>""))=0,"",SRP!H51) ->  | M34: =IF(SUMPRODUCT(N(SRP!$I51:'SRP'!$L51<>""))=0,"",SRP!I51) ->  | N34: =IF(SUMPRODUCT(N(SRP!$I51:'SRP'!$L51<>""))=0,"",SRP!J51) ->  | O34: =IF(SUMPRODUCT(N(SRP!$I51:'SRP'!$L51<>""))=0,"",SRP!K51) ->  | P34: =IF(SUMPRODUCT(N(SRP!$I51:'SRP'!$L51<>""))=0,"",SRP!L51) ->  | Q34: =IF(SUMPRODUCT(N(SRP!$M51:'SRP'!$P51<>""))=0,"",SRP!M51) ->  | R34: =IF(SUMPRODUCT(N(SRP!$M51:'SRP'!$P51<>""))=0,"",SRP!N51) ->  | S34: =IF(SUMPRODUCT(N(SRP!$M51:'SRP'!$P51<>""))=0,"",SRP!O51) ->  | T34: =IF(SUMPRODUCT(N(SRP!$M51:'SRP'!$P51<>""))=0,"",SRP!P51) ->  | U34: =IF(SUMPRODUCT(N(SRP!$Q51:'SRP'!$X51<>""))=0,"",SRP!Q51) ->  | V34: =IF(SUMPRODUCT(N(SRP!$Q51:'SRP'!$X51<>""))=0,"",SRP!R51) ->  | W34: =IF(SUMPRODUCT(N(SRP!$Q51:'SRP'!$X51<>""))=0,"",SRP!S51) ->  | X34: =IF(SUMPRODUCT(N(SRP!$Q51:'SRP'!$X51<>""))=0,"",SRP!T51) ->  | Y34: =IF(SUMPRODUCT(N(SRP!$Q51:'SRP'!$X51<>""))=0,"",SRP!U51) ->  | Z34: =IF(SUMPRODUCT(N(SRP!$Q51:'SRP'!$X51<>""))=0,"",SRP!V51) ->  | AA34: =IF(SUMPRODUCT(N(SRP!$Q51:'SRP'!$X51<>""))=0,"",SRP!W51) ->  | AB34: =IF(SUMPRODUCT(N(SRP!$Q51:'SRP'!$X51<>""))=0,"",SRP!X51) ->  | AC34: =IF(SUMPRODUCT(N(SRP!Y51<>""))=0,"",ROUND(SRP!Y51, 2)) ->  | AD34: =IF(SUMPRODUCT(N(SRP!Z51<>""))=0,"",ROUND(SRP!Z51, 2)) ->  | AE34: =IF(SUMPRODUCT(N(SRP!AA51<>""))=0,"",ROUND(SRP!AA51, 2)) ->  | AF34: =IF(SUMPRODUCT(N(SRP!AB51<>""))=0,"",ROUND(SRP!AB51, 2)) ->  | AG34: =IF(SUMPRODUCT(N(SRP!AL51<>""))=0,"",SRP!AL51) -> 
F35: =IF(SRP!B52<>"",ROW(F35)-2,"") ->  | G35: =IF(SUMPRODUCT(N(SRP!$C52<>""))=0,"",SRP!C52) ->  | H35: =IF(SUMPRODUCT(N(SRP!$D52<>""))=0,"",SRP!D52) ->  | I35: =IF(SUMPRODUCT(N(SRP!$E52:'SRP'!$H52<>""))=0,"",SRP!E52) ->  | J35: =IF(SUMPRODUCT(N(SRP!$E52:'SRP'!$H52<>""))=0,"",SRP!F52) ->  | K35: =IF(SUMPRODUCT(N(SRP!$E52:'SRP'!$H52<>""))=0,"",SRP!G52) ->  | L35: =IF(SUMPRODUCT(N(SRP!$E52:'SRP'!$H52<>""))=0,"",SRP!H52) ->  | M35: =IF(SUMPRODUCT(N(SRP!$I52:'SRP'!$L52<>""))=0,"",SRP!I52) ->  | N35: =IF(SUMPRODUCT(N(SRP!$I52:'SRP'!$L52<>""))=0,"",SRP!J52) ->  | O35: =IF(SUMPRODUCT(N(SRP!$I52:'SRP'!$L52<>""))=0,"",SRP!K52) ->  | P35: =IF(SUMPRODUCT(N(SRP!$I52:'SRP'!$L52<>""))=0,"",SRP!L52) ->  | Q35: =IF(SUMPRODUCT(N(SRP!$M52:'SRP'!$P52<>""))=0,"",SRP!M52) ->  | R35: =IF(SUMPRODUCT(N(SRP!$M52:'SRP'!$P52<>""))=0,"",SRP!N52) ->  | S35: =IF(SUMPRODUCT(N(SRP!$M52:'SRP'!$P52<>""))=0,"",SRP!O52) ->  | T35: =IF(SUMPRODUCT(N(SRP!$M52:'SRP'!$P52<>""))=0,"",SRP!P52) ->  | U35: =IF(SUMPRODUCT(N(SRP!$Q52:'SRP'!$X52<>""))=0,"",SRP!Q52) ->  | V35: =IF(SUMPRODUCT(N(SRP!$Q52:'SRP'!$X52<>""))=0,"",SRP!R52) ->  | W35: =IF(SUMPRODUCT(N(SRP!$Q52:'SRP'!$X52<>""))=0,"",SRP!S52) ->  | X35: =IF(SUMPRODUCT(N(SRP!$Q52:'SRP'!$X52<>""))=0,"",SRP!T52) ->  | Y35: =IF(SUMPRODUCT(N(SRP!$Q52:'SRP'!$X52<>""))=0,"",SRP!U52) ->  | Z35: =IF(SUMPRODUCT(N(SRP!$Q52:'SRP'!$X52<>""))=0,"",SRP!V52) ->  | AA35: =IF(SUMPRODUCT(N(SRP!$Q52:'SRP'!$X52<>""))=0,"",SRP!W52) ->  | AB35: =IF(SUMPRODUCT(N(SRP!$Q52:'SRP'!$X52<>""))=0,"",SRP!X52) ->  | AC35: =IF(SUMPRODUCT(N(SRP!Y52<>""))=0,"",ROUND(SRP!Y52, 2)) ->  | AD35: =IF(SUMPRODUCT(N(SRP!Z52<>""))=0,"",ROUND(SRP!Z52, 2)) ->  | AE35: =IF(SUMPRODUCT(N(SRP!AA52<>""))=0,"",ROUND(SRP!AA52, 2)) ->  | AF35: =IF(SUMPRODUCT(N(SRP!AB52<>""))=0,"",ROUND(SRP!AB52, 2)) ->  | AG35: =IF(SUMPRODUCT(N(SRP!AL52<>""))=0,"",SRP!AL52) -> 
F36: =IF(SRP!B53<>"",ROW(F36)-2,"") ->  | G36: =IF(SUMPRODUCT(N(SRP!$C53<>""))=0,"",SRP!C53) ->  | H36: =IF(SUMPRODUCT(N(SRP!$D53<>""))=0,"",SRP!D53) ->  | I36: =IF(SUMPRODUCT(N(SRP!$E53:'SRP'!$H53<>""))=0,"",SRP!E53) ->  | J36: =IF(SUMPRODUCT(N(SRP!$E53:'SRP'!$H53<>""))=0,"",SRP!F53) ->  | K36: =IF(SUMPRODUCT(N(SRP!$E53:'SRP'!$H53<>""))=0,"",SRP!G53) ->  | L36: =IF(SUMPRODUCT(N(SRP!$E53:'SRP'!$H53<>""))=0,"",SRP!H53) ->  | M36: =IF(SUMPRODUCT(N(SRP!$I53:'SRP'!$L53<>""))=0,"",SRP!I53) ->  | N36: =IF(SUMPRODUCT(N(SRP!$I53:'SRP'!$L53<>""))=0,"",SRP!J53) ->  | O36: =IF(SUMPRODUCT(N(SRP!$I53:'SRP'!$L53<>""))=0,"",SRP!K53) ->  | P36: =IF(SUMPRODUCT(N(SRP!$I53:'SRP'!$L53<>""))=0,"",SRP!L53) ->  | Q36: =IF(SUMPRODUCT(N(SRP!$M53:'SRP'!$P53<>""))=0,"",SRP!M53) ->  | R36: =IF(SUMPRODUCT(N(SRP!$M53:'SRP'!$P53<>""))=0,"",SRP!N53) ->  | S36: =IF(SUMPRODUCT(N(SRP!$M53:'SRP'!$P53<>""))=0,"",SRP!O53) ->  | T36: =IF(SUMPRODUCT(N(SRP!$M53:'SRP'!$P53<>""))=0,"",SRP!P53) ->  | U36: =IF(SUMPRODUCT(N(SRP!$Q53:'SRP'!$X53<>""))=0,"",SRP!Q53) ->  | V36: =IF(SUMPRODUCT(N(SRP!$Q53:'SRP'!$X53<>""))=0,"",SRP!R53) ->  | W36: =IF(SUMPRODUCT(N(SRP!$Q53:'SRP'!$X53<>""))=0,"",SRP!S53) ->  | X36: =IF(SUMPRODUCT(N(SRP!$Q53:'SRP'!$X53<>""))=0,"",SRP!T53) ->  | Y36: =IF(SUMPRODUCT(N(SRP!$Q53:'SRP'!$X53<>""))=0,"",SRP!U53) ->  | Z36: =IF(SUMPRODUCT(N(SRP!$Q53:'SRP'!$X53<>""))=0,"",SRP!V53) ->  | AA36: =IF(SUMPRODUCT(N(SRP!$Q53:'SRP'!$X53<>""))=0,"",SRP!W53) ->  | AB36: =IF(SUMPRODUCT(N(SRP!$Q53:'SRP'!$X53<>""))=0,"",SRP!X53) ->  | AC36: =IF(SUMPRODUCT(N(SRP!Y53<>""))=0,"",ROUND(SRP!Y53, 2)) ->  | AD36: =IF(SUMPRODUCT(N(SRP!Z53<>""))=0,"",ROUND(SRP!Z53, 2)) ->  | AE36: =IF(SUMPRODUCT(N(SRP!AA53<>""))=0,"",ROUND(SRP!AA53, 2)) ->  | AF36: =IF(SUMPRODUCT(N(SRP!AB53<>""))=0,"",ROUND(SRP!AB53, 2)) ->  | AG36: =IF(SUMPRODUCT(N(SRP!AL53<>""))=0,"",SRP!AL53) -> 
F37: =IF(SRP!B54<>"",ROW(F37)-2,"") ->  | G37: =IF(SUMPRODUCT(N(SRP!$C54<>""))=0,"",SRP!C54) ->  | H37: =IF(SUMPRODUCT(N(SRP!$D54<>""))=0,"",SRP!D54) ->  | I37: =IF(SUMPRODUCT(N(SRP!$E54:'SRP'!$H54<>""))=0,"",SRP!E54) ->  | J37: =IF(SUMPRODUCT(N(SRP!$E54:'SRP'!$H54<>""))=0,"",SRP!F54) ->  | K37: =IF(SUMPRODUCT(N(SRP!$E54:'SRP'!$H54<>""))=0,"",SRP!G54) ->  | L37: =IF(SUMPRODUCT(N(SRP!$E54:'SRP'!$H54<>""))=0,"",SRP!H54) ->  | M37: =IF(SUMPRODUCT(N(SRP!$I54:'SRP'!$L54<>""))=0,"",SRP!I54) ->  | N37: =IF(SUMPRODUCT(N(SRP!$I54:'SRP'!$L54<>""))=0,"",SRP!J54) ->  | O37: =IF(SUMPRODUCT(N(SRP!$I54:'SRP'!$L54<>""))=0,"",SRP!K54) ->  | P37: =IF(SUMPRODUCT(N(SRP!$I54:'SRP'!$L54<>""))=0,"",SRP!L54) ->  | Q37: =IF(SUMPRODUCT(N(SRP!$M54:'SRP'!$P54<>""))=0,"",SRP!M54) ->  | R37: =IF(SUMPRODUCT(N(SRP!$M54:'SRP'!$P54<>""))=0,"",SRP!N54) ->  | S37: =IF(SUMPRODUCT(N(SRP!$M54:'SRP'!$P54<>""))=0,"",SRP!O54) ->  | T37: =IF(SUMPRODUCT(N(SRP!$M54:'SRP'!$P54<>""))=0,"",SRP!P54) ->  | U37: =IF(SUMPRODUCT(N(SRP!$Q54:'SRP'!$X54<>""))=0,"",SRP!Q54) ->  | V37: =IF(SUMPRODUCT(N(SRP!$Q54:'SRP'!$X54<>""))=0,"",SRP!R54) ->  | W37: =IF(SUMPRODUCT(N(SRP!$Q54:'SRP'!$X54<>""))=0,"",SRP!S54) ->  | X37: =IF(SUMPRODUCT(N(SRP!$Q54:'SRP'!$X54<>""))=0,"",SRP!T54) ->  | Y37: =IF(SUMPRODUCT(N(SRP!$Q54:'SRP'!$X54<>""))=0,"",SRP!U54) ->  | Z37: =IF(SUMPRODUCT(N(SRP!$Q54:'SRP'!$X54<>""))=0,"",SRP!V54) ->  | AA37: =IF(SUMPRODUCT(N(SRP!$Q54:'SRP'!$X54<>""))=0,"",SRP!W54) ->  | AB37: =IF(SUMPRODUCT(N(SRP!$Q54:'SRP'!$X54<>""))=0,"",SRP!X54) ->  | AC37: =IF(SUMPRODUCT(N(SRP!Y54<>""))=0,"",ROUND(SRP!Y54, 2)) ->  | AD37: =IF(SUMPRODUCT(N(SRP!Z54<>""))=0,"",ROUND(SRP!Z54, 2)) ->  | AE37: =IF(SUMPRODUCT(N(SRP!AA54<>""))=0,"",ROUND(SRP!AA54, 2)) ->  | AF37: =IF(SUMPRODUCT(N(SRP!AB54<>""))=0,"",ROUND(SRP!AB54, 2)) ->  | AG37: =IF(SUMPRODUCT(N(SRP!AL54<>""))=0,"",SRP!AL54) -> 
F38: =IF(SRP!B55<>"",ROW(F38)-2,"") ->  | G38: =IF(SUMPRODUCT(N(SRP!$C55<>""))=0,"",SRP!C55) ->  | H38: =IF(SUMPRODUCT(N(SRP!$D55<>""))=0,"",SRP!D55) ->  | I38: =IF(SUMPRODUCT(N(SRP!$E55:'SRP'!$H55<>""))=0,"",SRP!E55) ->  | J38: =IF(SUMPRODUCT(N(SRP!$E55:'SRP'!$H55<>""))=0,"",SRP!F55) ->  | K38: =IF(SUMPRODUCT(N(SRP!$E55:'SRP'!$H55<>""))=0,"",SRP!G55) ->  | L38: =IF(SUMPRODUCT(N(SRP!$E55:'SRP'!$H55<>""))=0,"",SRP!H55) ->  | M38: =IF(SUMPRODUCT(N(SRP!$I55:'SRP'!$L55<>""))=0,"",SRP!I55) ->  | N38: =IF(SUMPRODUCT(N(SRP!$I55:'SRP'!$L55<>""))=0,"",SRP!J55) ->  | O38: =IF(SUMPRODUCT(N(SRP!$I55:'SRP'!$L55<>""))=0,"",SRP!K55) ->  | P38: =IF(SUMPRODUCT(N(SRP!$I55:'SRP'!$L55<>""))=0,"",SRP!L55) ->  | Q38: =IF(SUMPRODUCT(N(SRP!$M55:'SRP'!$P55<>""))=0,"",SRP!M55) ->  | R38: =IF(SUMPRODUCT(N(SRP!$M55:'SRP'!$P55<>""))=0,"",SRP!N55) ->  | S38: =IF(SUMPRODUCT(N(SRP!$M55:'SRP'!$P55<>""))=0,"",SRP!O55) ->  | T38: =IF(SUMPRODUCT(N(SRP!$M55:'SRP'!$P55<>""))=0,"",SRP!P55) ->  | U38: =IF(SUMPRODUCT(N(SRP!$Q55:'SRP'!$X55<>""))=0,"",SRP!Q55) ->  | V38: =IF(SUMPRODUCT(N(SRP!$Q55:'SRP'!$X55<>""))=0,"",SRP!R55) ->  | W38: =IF(SUMPRODUCT(N(SRP!$Q55:'SRP'!$X55<>""))=0,"",SRP!S55) ->  | X38: =IF(SUMPRODUCT(N(SRP!$Q55:'SRP'!$X55<>""))=0,"",SRP!T55) ->  | Y38: =IF(SUMPRODUCT(N(SRP!$Q55:'SRP'!$X55<>""))=0,"",SRP!U55) ->  | Z38: =IF(SUMPRODUCT(N(SRP!$Q55:'SRP'!$X55<>""))=0,"",SRP!V55) ->  | AA38: =IF(SUMPRODUCT(N(SRP!$Q55:'SRP'!$X55<>""))=0,"",SRP!W55) ->  | AB38: =IF(SUMPRODUCT(N(SRP!$Q55:'SRP'!$X55<>""))=0,"",SRP!X55) ->  | AC38: =IF(SUMPRODUCT(N(SRP!Y55<>""))=0,"",ROUND(SRP!Y55, 2)) ->  | AD38: =IF(SUMPRODUCT(N(SRP!Z55<>""))=0,"",ROUND(SRP!Z55, 2)) ->  | AE38: =IF(SUMPRODUCT(N(SRP!AA55<>""))=0,"",ROUND(SRP!AA55, 2)) ->  | AF38: =IF(SUMPRODUCT(N(SRP!AB55<>""))=0,"",ROUND(SRP!AB55, 2)) ->  | AG38: =IF(SUMPRODUCT(N(SRP!AL55<>""))=0,"",SRP!AL55) -> 
